Workbook

Sheet Intro
A1: Decision Supporting System developed in project INCOVER
A2: This spreadsheet model, the Decision Support System (DSS) was developed in the INCOVER project (https://incover-project.eu/) evaluating technologies developed for wastewater treatment and waste recovery. DSS is programmed in Visual Basic where only the active sheets are accessible for the user. Data inputs and other commads are defined as command buttons on these active sheets. The ultimate goal of creating this Decision Support System was to provide easy understandable environmental indicators for various maintenance and investment projects, since this part of the information is usually not considered. In addition, although in many cases environmental prescriptions and regulations have to be kept and followed, they do not always support increasing environmental efficiency. Thus, just following the regulation does not guarantee a progressive approach toward sustainability and an easy approximate calculation of environmental impacts for different investment options can assist decison making. In Project INCOVER we had the opportunity to use some very important and relevant LCA database units, i.e. unit processes, that could be used to make a quick preliminary evaluation of investment and maintenance alternatives at hand. These unit processes build the bases of the DSS. Additionally, a simple economic calculation was also built in to the DSS based on the economic data given by the user. And what is more, the anticipated social impacts of INCOVER technologies is also given on sheet "sLCA". The DSS has four active sheets: “Intro”, “Ref_sys”, "New_tech”, and "sLCA". On this sheet “Intro” is the short introduction to the application and the disclimer of the dataset providing company Think Step. The worksheet “Ref_sys” is designed for selecting the reference technology. This is of utmost importance, because the reference technology is the technology with the results of the new technology are compared with. Without this comparison, the sustainbility results are hard to understand and interpret, because sustainabilty assessment is only possible in relative terms, i.e. not absolute but relative sustainability can be assessed. This relativeness is provided by the reference system. In the worksheet “New_tech” the new technology can be defined and this page also contains the environmental and economic results of the conparison. These results are presented in tables and in case of LCA calculations also in charts. On the worksheet "sLCA" the user can have a look at the social assessment results of INCOVER technologies. Important! Since the application uses macros, before you proceed with calculations, please allow the use of macros in Excel!
A4: Disclaimer
A5: thinkstep AG (database provider) is not liable for the up-to-dateness, correctness, usability, completeness and quality of any calculations, conclusions and other results obtained through the use of the software provided by thinkstep AG and the user data. Any liability of thinkstep AG for the use of the calculations, conclusions and other results obtained through the software use is excluded. The user only is responsible for the up-to-dateness, correctness, usability, completeness and quality of his data, any calculations, conclusions and other results obtained by his data, tools, calculation tools, software and their subsequent use. He bears the sole risk of possible miscalculations, incompleteness, incorrectness and any further deficiencies. thinkstep AG is solely responsible for providing the software and the content already included therein.
A6: The project has received funding from the European Union’s Horizon 2020 research and innovation programme under grant agreement No. 689242. The dissemination of results herein reflects only the author’s view and the Commission is not responsible for any use that may be made of the information it contains.

Sheet Ref_sys
A1: Selecting the reference technology
A2: In this worksheet you can select the reference technology that suits the best to your system. Bear in mind that the function of the reference system should be the same with your system and the size shouldn't alter more than +/-50%.
A4: Main features of the selected reference technology
A5: Technology selection | B5: Sequencing batch reactor with sludge settler, flow rate: 300 m3/day
A6: Size of technology, flow rate [m3/day] | B6: =VLOOKUP(B5,Inputs!A2:D19,4,FALSE) -> 300
A7: Lifetime of technologies [years] | B7: =VLOOKUP(B5,Inputs!A2:E19,5,FALSE) -> 40
A8: Reference flow of technology [m3/lifetime] | B8: =B6*365*B7 -> 4380000
A10: Technical perfomance of the reference technology
A11: Input values | B11: Output values
A12: =VLOOKUP(Ref_sys!$B$5,Results!A4:Q20,8,FALSE) -> BOD [mg/L] 350 | B12: =VLOOKUP(Ref_sys!$B$5,Results!A4:Q20,13,FALSE) -> BOD [mg/L] 6.75
A13: =VLOOKUP(Ref_sys!$B$5,Results!A4:Q20,9,FALSE) -> COD [mg/L] 800 | B13: =VLOOKUP(Ref_sys!$B$5,Results!A4:Q20,14,FALSE) -> COD [mg/L] 28.68
A14: =VLOOKUP(Ref_sys!$B$5,Results!A4:Q20,10,FALSE) -> TSS [mg/L] 500 | B14: =VLOOKUP(Ref_sys!$B$5,Results!A4:Q20,15,FALSE) -> TSS [mg/L] 10
A15: =VLOOKUP(Ref_sys!$B$5,Results!A4:Q20,11,FALSE) -> TKN [mg/L] 67 | B15: =VLOOKUP(Ref_sys!$B$5,Results!A4:Q20,16,FALSE) -> TN [mg/L] 12.35
A16: =VLOOKUP(Ref_sys!$B$5,Results!A4:Q20,12,FALSE) -> TP [mg/L] 10 | B16: =VLOOKUP(Ref_sys!$B$5,Results!A4:Q20,17,FALSE) -> TP [mg/L] 1.34
A18: Description of the reference technology
A19: =VLOOKUP(Ref_sys!B5,Results!A4:Q20,7,FALSE) -> The WW treatment plant was designed to clear a WW inflow of max. 300 m3/day, (1,600 PE).The SBR plant consists of a pretreatment unit with a filter and sand trap, a buffer tank, an SBR tank, and a sludge tank. The WW treated has exclusively municipal origins and first passes a filter, where the larger solid particles are selected out. Then the WW passes a sand trap (7 m3) and a buffer tank (110 m3) with a WW pump. Here is the WW stored for the next cycle in the SBR. Up here this phase is considered as pretreatment. Next, WW is treated in the 884 m3 SBR tank. In this tank 3 cycles of WW treatment are done per day, each lasting for 8 hours following this schedule: filling 57.47 min., anaerobic mixing 120 min., react – aerobic mixing 120 min., anoxic mixing 30 min, settle 90 min., decant 57.47 min., idle 4.8 min. Subsequent to the SBR tank, a sludge tank is included where the settled sludge is treated with the addition of PAM (Praestol) to thicken and to obtain a dry matter content of the sludge comparable to the dry matter content of the algal biomass after separation (i.e. ca. 3.5-4.8%).
A23: Technology
A24: Conventional wastewater treatment plant, flow rate: 30,137 m3/day
A25: High-rate algae pond with pretreatment and settler, flow rate: 300 m3/day
A26: Sequencing batch reactor with sludge settler, flow rate: 300 m3/day
A27: Biogas production: 900 Nm3/day
A28: Algae-based biogas upgrade with HRAP, flow rate: 0.05 m3/day
A29: Pressure swing adsorption: 26,920.7 m3/day
A30: Raw sewage sludge incineration
A31: Evaporative system for digestate and sludge, flow rate: 0.427 m3/day
A32: Willow zero-discharge system for wastewater, flow rate: 4 m3/day
A33: Sludge Treatment Wetland, flow rate: 0.0225 m3/day
A34: Planted filter for outlet water from a HRAP with Phragmites australis, flow rate: 4 m3/day
A35: Planted filter for outlet water from a HRAP with Arundo donax, flow rate: 4 m3/day
A36: Planted filter with Phragmites Australis for municipal wastewater, flow rate: 4 m3/day
A37: Conventional chlorination, flow rate: 8 m3/day
A38: A. niger-based citric acid production
A39: Solar anodic oxidation: 8 m3/day
A40: no information

Sheet New_tech
A1: Define your system
A2: This worksheet builds the main part of the application DSS. Here the user can define the composition of the new technology using different material and energy flows. This list of flows comprises the most common building materials and process additives that are used in wastewater treatment (WWT). In addition, you are welcome to define the performance of your technology by giving the input and output values too. To open this dialog box click on the button “Data input”. First, name the new technology. Next, the life span and the flow rate of the technology has to be defined. As a next step, fill in the first colum where the material and energy flows of the new technology are required. Please, be aware of the dimensions predifined for each flow. There are two main life phases important: construction and operation. In case of construction, the total amounts are to be defined and the calculation adjusts these amount to the total life span of the technology. Operation data should be provided per year and the calculation automatically considers the total amount for the whole life-cycle. In the second column the cost of the material and energy flows, and for transportation and personnel has to be given. In addition, you can provide a short description of the newly defined system and provide characteristic input and output indicators describing the technical performance of the technology. To make these inputs understandable for others, please give the dimension as well, e.g. COD 800 [mg/L]. When this dialog box is filled in, click OK to show the results or Cancel to delete the inputs made so far. There are three additional buttons available on this sheet: “Record my technology”, “Finish and close”, and “Back”. With the “Record my technology” button you can save the new technology as a reference system and all the inputs and results will be saved to this list. Consequently, when returning to the “Ref_sys” page, among the reference systems in the drop-down you will find the newly saved technology as well. With the “Finish and close” button the Excel file is closed without saving the results! The “Back” button allows to return back to the “Ref_sys” worksheet.
A4: Results
A5: Name of selected technologies | B5: =B51 -> New technology | C5: =C51 -> Sequencing batch reactor with sludge settler, flow rate: 300 m3/day | G5: =B5 -> New technology | H5: =C5 -> Sequencing batch reactor with sludge settler, flow rate: 300 m3/day
A6: Lifespan of technology | B6: =B52 -> 40 | C6: =C52 -> 40
A7: Lifespan of technology | B7: =B52 -> 40 | C7: 40 | E7: Global warming potential | F7: kg CO2-eq./FU | G7: =My_techn!B3 -> 1.098327804 | H7: =VLOOKUP(H5,Results!$A$4:$F$98,2,FALSE) -> 0.2750066963
A8: Flow rate of technology, unit/years | B8: 300 | C8: 300 | E8: Eutrophication potential | F8: kg PO4 eq./FU | G8: =My_techn!C3 -> 0.002954455874 | H8: =VLOOKUP(H5,Results!$A$4:$F$98,3,FALSE) -> 0.0001644054736
A9: Flow rate of technology, unit/lifetime | B9: 4380000 | C9: 4380000 | E9: Acidification potential | F9: kg SO4 eq./FU | G9: =My_techn!D3 -> 0.005956053124 | H9: =VLOOKUP(H5,Results!$A$4:$F$98,4,FALSE) -> 0.001155244451
E10: Human toxicity potential | F10: kg DCB eq./FU | G10: =My_techn!E3 -> 0.4495556402 | H10: =VLOOKUP(H5,Results!$A$4:$F$98,5,FALSE) -> 0.4617079979
A11: Building materials | E11: Primer energy demand | F11: MJ/FU | G11: =My_techn!F3 -> 25.90603202 | H11: =VLOOKUP(H5,Results!$A$4:$F$98,6,FALSE) -> 4.782091793
A12: Concrete, kg | B12: =B56 -> 50 | C12: =VLOOKUP($C$5,Inputs!$A$3:$X$100,6,FALSE) -> 335154.4
A13: Steel components, kg | B13: =B74 -> 10 | C13: =VLOOKUP($C$5,Inputs!$A$3:$X$100,24,FALSE) -> 19137.11048
A14: PVC pipes, kg | B14: =B57 -> 0 | C14: =VLOOKUP($C$5,Inputs!$A$3:$X$100,7,FALSE) -> 249.8
A15: HDPE pipes, kg | B15: 56 | C15: =VLOOKUP($C$5,Inputs!$A$3:$X$100,8,FALSE) -> 0
A16: Glass fibre reinforced PE pipe, kg | B16: 0 | C16: =VLOOKUP($C$5,Inputs!$A$3:$X$100,9,FALSE) -> 0
A17: PE plastic parts, kg | B17: 0 | C17: =VLOOKUP($C$5,Inputs!$A$3:$X$100,10,FALSE) -> 0
A18: PP plastic parts, kg | B18: 0 | C18: =VLOOKUP($C$5,Inputs!$A$3:$X$100,11,FALSE) -> 0
A19: PVC plastic parts, kg | B19: 0 | C19: =VLOOKUP($C$5,Inputs!$A$3:$X$100,12,FALSE) -> 0
A20: Glass fibre reinforced PE parts, kg | B20: 0 | C20: =VLOOKUP($C$5,Inputs!$A$3:$X$100,13,FALSE) -> 0
A21: Pumps, kg | B21: 50 | C21: =VLOOKUP($C$5,Inputs!$A$3:$X$100,14,FALSE)*C64/C7 -> 280
A23: Operational imputs
A24: Flocculant PAC18%, kg/day | B24: =B65 -> 0 | C24: =VLOOKUP($C$5,Inputs!$A$3:$X$100,15,FALSE)/(365*$C$7) -> 17.47006849
A25: Coagulants Polyacrylamide, kg/day | B25: 100 | C25: =VLOOKUP($C$5,Inputs!$A$3:$X$100,16,FALSE)/(365*$C$7) -> 0.6313013699
A26: Polyether polyol, kg/day | B26: 0 | C26: =VLOOKUP($C$5,Inputs!$A$3:$X$100,17,FALSE)/(365*$C$7) -> 0
A27: Limestone, kg/day | B27: 0 | C27: =VLOOKUP($C$5,Inputs!$A$3:$X$100,18,FALSE)/(365*$C$7) -> 0
A28: Sodium silicate, kg/day | B28: 0 | C28: =VLOOKUP($C$5,Inputs!$A$3:$X$100,19,FALSE)/(365*$C$7) -> 0
A29: Process water, kg/day | B29: 0 | C29: =VLOOKUP($C$5,Inputs!$A$3:$X$100,20,FALSE)/(365*$C$7) -> 0
A30: Electricity, kWh/day | B30: 100 | C30: =VLOOKUP($C$5,Inputs!$A$3:$X$100,21,FALSE)/(365*$C$7*3.6) -> 132.027954
A31: PV electricity, kWh/day | B31: 0 | C31: =VLOOKUP($C$5,Inputs!$A$3:$X$100,22,FALSE)/(365*$C$7) -> 0
A32: Heat, MJ/day | B32: 0 | C32: =VLOOKUP($C$5,Inputs!$A$3:$X$100,23,FALSE)/(365*$C$7) -> 0
A34: Economic results
A35: CAPEX, € | B35: =SUM(G56:G64)+G74+G73 -> 0 | C35: =SUM(I56:I64)+I74+I73 -> 0
A36: OPEX, €/year | B36: =SUM(G65:G72)+G75 -> 0 | C36: =SUM(I65:I72)+I75 -> 0
A51: Name of the technology | B51: New technology | C51: =Ref_sys!B5 -> Sequencing batch reactor with sludge settler, flow rate: 300 m3/day
A52: Lifespan of technology | B52: 40 | C52: =Ref_sys!B7 -> 40
A53: Flow rate of technology per day | B53: 300 | C53: =Ref_sys!B6 -> 300
A54: Flow rate of technology per lifetime | B54: =B52*B53*365 -> 4380000 | C54: =C52*C53*365 -> 4380000
C55: lifespan | E55: Cost | F55: Cost | H55: =C5 -> Sequencing batch reactor with sludge settler, flow rate: 300 m3/day
A56: Concrete, kg | B56: 50 | C56: 40 | D56: =B56*$B$52/C56 -> 50 | F56: Concrete, €/kg | G56: =D56*E56 -> 0 | H56: =VLOOKUP($H$55,Inputs!$A$3:$X$100,6,FALSE)*$C$52/C56 -> 335154.4 | I56: =H56*E56 -> 0
A57: PVC pipes, kg | C57: 40 | D57: =B57*$B$52/C57 -> 0 | F57: PVC pipes, €/kg | G57: =D57*E57 -> 0 | H57: =VLOOKUP($H$55,Inputs!$A$3:$X$100,7,FALSE)*$C$52/C57 -> 249.8 | I57: =H57*E57 -> 0
A58: HDPE pipes, kg | B58: 56 | C58: 40 | D58: 56 | F58: HDPE pipes, €/kg | G58: 0 | H58: =VLOOKUP($H$55,Inputs!$A$3:$X$100,8,FALSE)*$C$52/C58 -> 0 | I58: 0
A59: Glass fibre reinforced PE pipe, kg | C59: 40 | D59: 0 | F59: Glass fibre reinforced PE pipe, €/kg | G59: 0 | H59: =VLOOKUP($H$55,Inputs!$A$3:$X$100,9,FALSE)*$C$52/C59 -> 0 | I59: 0
A60: PE plastic parts, kg | C60: 40 | D60: 0 | F60: PE plastic parts, €/kg | G60: 0 | H60: =VLOOKUP($H$55,Inputs!$A$3:$X$100,10,FALSE)*$C$52/C60 -> 0 | I60: 0
A61: PP plastic parts, kg | C61: 40 | D61: 0 | F61: PP plastic parts, €/kg | G61: 0 | H61: =VLOOKUP($H$55,Inputs!$A$3:$X$100,11,FALSE)*$C$52/C61 -> 0 | I61: 0
A62: PVC plastic parts, kg | C62: 40 | D62: 0 | F62: PVC plastic parts, €/kg | G62: 0 | H62: =VLOOKUP($H$55,Inputs!$A$3:$X$100,12,FALSE)*$C$52/C62 -> 0 | I62: 0
A63: Glass fibre reinforced PE parts, kg | C63: 40 | D63: 0 | F63: Glass fibre reinforced PE parts, €/kg | G63: 0 | H63: =VLOOKUP($H$55,Inputs!$A$3:$X$100,13,FALSE)*$C$52/C63 -> 0 | I63: 0
A64: Pumps, kg | B64: 50 | C64: 10 | D64: 200 | F64: Pumps, €/kg | G64: 0 | H64: =VLOOKUP($H$55,Inputs!$A$3:$X$100,14,FALSE) -> 1120 | I64: =H64*E64 -> 0
A65: Flocculant PAC18%, kg/day | C65: 365 | D65: =B65*C65*$B$52 -> 0 | F65: Flocculant PAC18%, €/kg | G65: =B65*C65*E65 -> 0 | H65: =VLOOKUP($H$55,Inputs!$A$3:$X$100,15,FALSE) -> 255063 | I65: =H65/$C$52*E65 -> 0
A66: Coagulants Polyacrylamide, kg/day | B66: 100 | C66: 365 | D66: =B66*C66*$B$52 -> 1460000 | F66: Coagulants Polyacrylamide, €/kg | G66: =B66*C66*E66 -> 0 | H66: =VLOOKUP($H$55,Inputs!$A$3:$X$100,16,FALSE) -> 9217 | I66: =H66/$C$52*E66 -> 0
A67: Polyether polyol, kg/day | C67: 365 | D67: 0 | F67: Polyether polyol, €/kg | G67: 0 | H67: =VLOOKUP($H$55,Inputs!$A$3:$X$100,17,FALSE) -> 0 | I67: 0
A68: Limestone, kg/day | C68: 365 | D68: 0 | F68: Limestone, €/kg | G68: 0 | H68: =VLOOKUP($H$55,Inputs!$A$3:$X$100,18,FALSE) -> 0 | I68: 0
A69: Sodium silicate, kg/day | C69: 365 | D69: 0 | F69: Sodium silicate, €/kg | G69: 0 | H69: =VLOOKUP($H$55,Inputs!$A$3:$X$100,19,FALSE) -> 0 | I69: 0
A70: Process water, kg/day | C70: 365 | D70: 0 | F70: Process water, €/kg | G70: 0 | H70: =VLOOKUP($H$55,Inputs!$A$3:$X$100,20,FALSE) -> 0 | I70: 0
A71: Electricity, kWh/day | B71: 100 | C71: 365 | D71: =B71*C71*$B$52*3.6 -> 5256000 | F71: Electricity, €/kWh | G71: =B71*C71*E71 -> 0 | H71: =VLOOKUP($H$55,Inputs!$A$3:$X$100,21,FALSE) -> 6939389.26 | I71: =H71/($C$52*3.6)*E71 -> 0
A72: PV electricity, kWh/day | C72: 365 | D72: =B72*C72*$B$52*3.6 -> 0 | F72: Heat, €/MJ | G72: 0 | H72: =VLOOKUP($H$55,Inputs!$A$3:$X$100,23,FALSE) -> 0 | I72: =H72/$C$52*E72 -> 0
A73: Heat, MJ/day | C73: 365 | D73: =B73*C73*$B$52 -> 0 | F73: Trasport cost, €/tkm | G73: =(SUM(D56:D69)+D74)/1000*E73*B75 -> 0 | H73: =VLOOKUP($H$55,Inputs!$A$3:$X$100,6,FALSE) -> 335154.4 | I73: =(SUM(H56:H69)+H74)/1000*E73*B75 -> 0
A74: Steel components, kg | B74: 10 | C74: 40 | D74: =B74*$B$52/C74 -> 10 | F74: Steel components, €/kg | G74: 0 | H74: =VLOOKUP($H$55,Inputs!$A$3:$X$100,24,FALSE)*$C$52/C74 -> 19137.11048 | I74: =H74*E74 -> 0
A75: Average transport distance, km | C75: 12 | F75: Personal costs, €/month | G75: =E75*C75 -> 0 | I75: =G75 -> 0
C76: Life span
C77: 5
C78: 10
C79: 15
C80: 20
C81: 40 | G81: Input | L81: Output

Sheet sLCA
A1: On this sheet the user can read about the social life-cycle assessment results of the technologies in INCOVER
A2: Name of the evaluated technology - Please choose from the drop-down list! | B2: Description of results of the social life-cycle assessment
A3: Hydrothermal carbonization | B3: =VLOOKUP(A3,F20:H27,3,FALSE) -> The technology major social impacts are: - Creation of local jobs on a technical level during operation and maintenance for the commissioned modules. - Creation of significant indirect jobs are not expected. Could be significant if was created a small economy related with large scale production of biochar, which could be used by local agents as carbon sequestration agent, soil amendment and adsorbent/ oin exchanger for water and air purification. - Wastewater providers, and equipment or other material local suppliers, and waste management operators will be contracted during O&M. Waste management operators will be contracted during dismantlement. - There are physical, ergonomic, chemical and biological contamination risks related with wastewater O&M activities for our staff. Same risks on dismantlement phase. Therefore, health and safety policies, preventive plan and measures should be implemented and emergency protocols regarding workers, beside legal requirements. - Should be feasible to have the technology installed at existing WWTP. However, in case of a stand-alone production plant is envisaged, private land occupation could be some of the emerging social issues. - Like others WWTP, this technology could produce odors and liquid effluents, so there is a possibility to arise life quality conflicts on community. - Technology energy consumption should not be significant to promote natural resources conflicts on community. The energy balance depends very strongly on the treated biomass. Worst case means that we need energy to heat up the water to 110 °C, the resting needs are coming from the energy recovery at the end of the process. Best case is that there are light energy surpluses, which have to be removed. Most probable case is to install the HTC unit at a place where energy already exists as a surplus, e.g. CHP or a biogas plant. - The participation and engagement of the local community should be promoted. It provides transparency, education and social pacification through relevant information to population during the activities and operations. There's an intention to participate on promotion events and communication activities with local community, such as attend to community meetings, promote installation visits, media reports on TV and Internet, newsletters publication, information by email, abstracts or scientific articles, etc. - Although there's a capability of job generation, the impact on economic growth of community is not significant. It may be significant in some decades where there will be desertified soils on UE. HTC could provide fertilization capabilities for poor quality, degraded or desertified soils and to use in hydroponic cultures and, therefore, improve production on agriculture activities and promote economic growth. - The technology could have impact on pollution mitigation because promotes circular economy and waste reuse and valorization. This technology shows also potential for CO2 reduction comparing to natural rotting processes. Should be applied to wastewater treatment plants where energy or heat surplus already exists (e.g. CHP or a biogas plant), in order to fulfill high energy demands of the technology. The liquid by-product (process water or effluent) is very rich in nutrients, and could be treated or can be used as liquid fertilizer (which needs to be tested first to assess all the impacts). Odor production should be also removed. CO2 is about 80 % of the gas phase. - It is expected to give information to users about the resources and origin of biochar and liquid fertilizer, recommended uses for it, or safe disposal. - The inadequate use of biochar and liquid fertilizer could arise environmental risks. Is also expected to give this information to users. - User, consumer or community satisfaction surveys regarding quality of service should be done.
F19: Name of technology | H19: Description of resulst
F20: Water irrigation remotely controlled systems | H20: The technology major social impacts are: - Creation of local jobs on a technical level during operation and maintenance for the commissioned modules. - Is not expected to create significant indirect jobs. - Technology works with local suppliers for installation services either in agronomy domain (planting) or hydraulic issues (irrigation driplines, pump deployment), for system's maintenance, as well as go-to-market partners since irrigation market and the supply chain is highly complex (manufacturers, irrigation consultants/ auditors, dealers, end-users). - Development of agriculture activities and sectorial economy growth. Smart farming tools make farming more convenient, evidence-based and digitized so younger generations are more appealed jump in the agriculture production. The flexibility for remote monitoring of farms may lead to cultivating currently unexploited lands and thus contribute to regional employability. FINT's technology powers the local data economy creation and optimizing the water consumption on farming activities depending on weather conditions resulting on the boost of production of agriculture sector. Farming increasing productivity and minimizing risk since when extreme weather conditions occur users are timely notified. - Local equipment or other material suppliers will be contracted during O&M for all commissioned modules. Local waste management operators will be contracted during dismantlement for all commissioned modules. - Occupational risk for workers are expected to be very low, therefore, is expected no need to implement health and safety policies, preventive plan and measures or emergency protocols regarding workers, beside legal requirements. - Is not expected to generate community conflicts related to natural resources consumption, health and safety of population, security issues, life quality issues, casualties or injuries, resettlements, or others. The technology needs occupation of land to operate, but the risk of inducing conflicts or social impairments is considered not significant. - The participation and engagement of the local community should be promoted. It provides transparency, education and social pacification through relevant information to population during the activities and operations. There's an intention to participate on promotion events and communication activities with local community, such as public meetings with local community members and open door events regarding smart farming tools, media reports on TV and Internet, newsletters publication, information by email, etc. - The technology has a significant impact on pollution mitigation because it contributes to consumption reduction of water resources, pesticides, and fertilizers on the farming activities. The technology monitoring capabilities promotes the prevention of pollution and improvement of environmental conditions. Also increase the trust in primary production and minimize the production risks related with extreme weather conditions because users are timely notified. - The technology delivers water traceability and quality monitoring which promotes food safety to consumers and health beneficiation. - The use of retreated water application on non-demanding irrigation applications (e.g. energy crop, urban washing, landscape or sport-courts watering) avoid the excessive consumption of mineral water resources, and therefore, could prevent social conflicts on water scarcity regions. - Is expected to give information to users about the resources and origin of the water, quality parameters or conditions, recommended uses for the water and possible environmental or health risks (or other adverse effects) when treated wastewater is used by FINT's irrigation systems. - At dismantlement phase the equipment should be collected and sent to recommended destination (reuse or recycling) or safely dispose following all the relevant guidelines and best practices for residues. - Consumer or user satisfaction surveys regarding quality of service and reports on irrigation equipment performance on an on-demand service scheme.
F21: Solar driven disinfection systems by ultrafiltration | H21: The technology major social impacts are: - Creation of local jobs on a technical level during operation and maintenance for the commissioned modules. - Is not expected to create significant indirect jobs. - Wastewater providers, and equipment or other material local suppliers, and waste management operators will be contracted during O&M. Waste management operators will be contracted during dismantlement. - There are ergonomic, chemical and biological contamination risks related with wastewater O&M activities for our staff, mainly on handling of chemicals during service cleaning. Same risks on dismantlement phase. Therefore, health and safety policies, preventive plan and measures should be implemented and emergency protocols regarding workers, beside legal requirements. - Should be feasible to have the technology installed at existing WWTP. The technology needs occupation of land to operate, but the risk of inducing conflicts or social impairments is considered not significant. - The technology does not produce extra odors or other significant emissions to air, so should not promote life quality conflicts on community. - The technology energy consumption should not be significant to promote natural resources conflicts on community. - The participation and engagement of the local community should be promoted. It provides transparency, education and social pacification through relevant information to population during the activities and operations. There's an intention to participate on promotion events and communication activities with local community, such as attend to community meetings, promote installation visits, media reports on TV and Internet, newsletters publication, information by email, abstracts or scientific articles, etc. - Although there's a capability of job generation, the impact on economic growth of community should not significant. - The technology has a significant impact on pollution mitigation because it contributes to consumption reduction of water resources, saving water due to reuse and providing high quality / disinfected water for non-demanding uses (e.g. irrigation and washing activities). The technology monitoring capabilities promotes the prevention of pollution and improvement of environmental conditions. - The technology delivers water traceability and quality monitoring which promotes food safety to consumers when crops are irrigated by disinfected water or increase the sanitary conditions when disinfected water is used for cleaning and washing activities, promoting health beneficiation. - The use of retreated water application on non-demanding irrigation applications (e.g. energy crop, urban washing, landscape or sport-courts watering) avoid the excessive consumption of mineral water resources, and therefore, could prevent social conflicts on water scarcity regions. - Is expected to give information to users about the resources and origin of the water, quality parameters or conditions, recommended uses for the disinfected water and possible environmental or health risks (or other adverse effects) when treated wastewater is used. - At dismantlement phase the equipment should be collected and sent to recommended destination (reuse or recycling) or safely dispose following all the relevant guidelines and best practices for residues. - Consumer or user satisfaction surveys regarding quality of service and reports on solar disinfection equipment performance on an on-demand service scheme.
F22: High Rate Algae Ponds (HRAP) system for wastewater treatment, thermal pre-treatment and anaerobic co-digestion of microalgae with biogas production | H22: The technology major social impacts are: - Creation of local jobs on a technical level during operation and maintenance for the commissioned modules. - Creation of significant indirect jobs are not expected. Could be significant if was created a small economy related with large scale production of biogas, which could be used by local road vehicles or energy production. - Wastewater providers, and equipment or other material local suppliers, and waste management operators will be contracted during O&M. Waste management operators will be contracted during dismantlement. - There are ergonomic, chemical and biological contamination risks related with wastewater O&M activities for our staff. Same risks on dismantlement phase. Therefore, health and safety policies, preventive plan and measures should be implemented and emergency protocols regarding workers, beside legal requirements. - Should be feasible to have the technology installed at existing WWTP. However, in case of a full scale and stand-alone production plant is envisaged, and considering the need of large size of territory to build algae ponds, private land occupation and need for resettlements could be some of the emerging social issues. - Like others WWTP, this technology could produce odors, so there is a possibility to arise life quality conflicts on community. - HRAP is a eco-efficient process that needs less electric consumption then conventional activated sludge wastewater treatments. Therefore, technology energy consumption should not be significant to promote natural resources conflicts on community. - The participation and engagement of the local community should be promoted. It provides transparency, education and social pacification through relevant information to population during the activities and operations. There's an intention to participate on promotion events and communication activities with local community, such as attend to community meetings, promote installation visits, media reports on TV and Internet, newsletters publication, information by email, abstracts or scientific articles, etc. - Although there's a capability of job generation, the impact on economic growth of community is not significant. - The technology has a significant impact on pollution mitigation and health beneficiation because it contributes to wastewater treatment and improvement of sanitary conditions of community. The technology contributes to CO2 absorption by microalgae, and combined with anaerobic co-digestion produces biomethane that could be reused as vehicle fuel for transportation in public transport (buses, trash truck and other public vehicles) or energy recovery systems and promoting circular economy. After dried and purified from H2S and siloxanes the biogas will be used directly in vehicles - Fuel quality: <20 mg/Nm3 of total sulphur and water dew point of -10ºC at 200 bar, according to ISO 6327. Vehicles adapted to natural gas can also be used for this biofuel. These solutions contribute positively for CO2 emissions reduction and global warming mitigation and adaption. All of these environmental aspects bring social benefits to quality of life, pollution mitigation and health or sanitary conditions. - These technologies allows the reuse of treated wastewater for several non-demanding uses (e.g. irrigation, washing) and avoid mineral water consumption, so could prevent some social conflicts in regions with water scarcity. - It is expected to give information to users about the resources and origin of biomethane, recommended uses for it, or safe disposal. - The inadequate use of biomethane could arise environmental and occupational or safety risks. Is also expected to give this information to users. - User, consumer or community satisfaction surveys regarding quality of service should be done. - At dismantlement phase the equipment should be collected and sent to recommended destination (reuse or recycling) or safely dispose following all the relevant guidelines and best practices for residues.
F23: Hydrothermal carbonization | H23: The technology major social impacts are: - Creation of local jobs on a technical level during operation and maintenance for the commissioned modules. - Creation of significant indirect jobs are not expected. Could be significant if was created a small economy related with large scale production of biochar, which could be used by local agents as carbon sequestration agent, soil amendment and adsorbent/ oin exchanger for water and air purification. - Wastewater providers, and equipment or other material local suppliers, and waste management operators will be contracted during O&M. Waste management operators will be contracted during dismantlement. - There are physical, ergonomic, chemical and biological contamination risks related with wastewater O&M activities for our staff. Same risks on dismantlement phase. Therefore, health and safety policies, preventive plan and measures should be implemented and emergency protocols regarding workers, beside legal requirements. - Should be feasible to have the technology installed at existing WWTP. However, in case of a stand-alone production plant is envisaged, private land occupation could be some of the emerging social issues. - Like others WWTP, this technology could produce odors and liquid effluents, so there is a possibility to arise life quality conflicts on community. - Technology energy consumption should not be significant to promote natural resources conflicts on community. The energy balance depends very strongly on the treated biomass. Worst case means that we need energy to heat up the water to 110 °C, the resting needs are coming from the energy recovery at the end of the process. Best case is that there are light energy surpluses, which have to be removed. Most probable case is to install the HTC unit at a place where energy already exists as a surplus, e.g. CHP or a biogas plant. - The participation and engagement of the local community should be promoted. It provides transparency, education and social pacification through relevant information to population during the activities and operations. There's an intention to participate on promotion events and communication activities with local community, such as attend to community meetings, promote installation visits, media reports on TV and Internet, newsletters publication, information by email, abstracts or scientific articles, etc. - Although there's a capability of job generation, the impact on economic growth of community is not significant. It may be significant in some decades where there will be desertified soils on UE. HTC could provide fertilization capabilities for poor quality, degraded or desertified soils and to use in hydroponic cultures and, therefore, improve production on agriculture activities and promote economic growth. - The technology could have impact on pollution mitigation because promotes circular economy and waste reuse and valorization. This technology shows also potential for CO2 reduction comparing to natural rotting processes. Should be applied to wastewater treatment plants where energy or heat surplus already exists (e.g. CHP or a biogas plant), in order to fulfill high energy demands of the technology. The liquid by-product (process water or effluent) is very rich in nutrients, and could be treated or can be used as liquid fertilizer (which needs to be tested first to assess all the impacts). Odor production should be also removed. CO2 is about 80 % of the gas phase. - It is expected to give information to users about the resources and origin of biochar and liquid fertilizer, recommended uses for it, or safe disposal. - The inadequate use of biochar and liquid fertilizer could arise environmental risks. Is also expected to give this information to users. - User, consumer or community satisfaction surveys regarding quality of service should be done.
F24: Biogas upgrading system | H24: The technology major social impacts are: - Creation of local jobs on a technical level during operation and maintenance for the commissioned modules. - Is not expected to create significant indirect jobs. Could be significant if was created a small economy related with waste transportation, valorization and production of biogas in large scale installations. - Wastewater and waste providers, and equipment or other material local suppliers, and waste management operators will be contracted during O&M. Waste management operators will be contracted during dismantlement. - There are ergonomic, chemical and biological contamination risks related with wastewater O&M activities for our staff, mainly on handling of chemicals during service cleaning. Same risks on dismantlement phase. Therefore, health and safety policies, preventive plan and measures should be implemented and emergency protocols regarding workers, beside legal requirements. - The technology is an integrate module which should be installed at existing WWTP or any anaerobic digestion plant. Besides usual WWTP social impacts, the technology does not produce any extra conflicts to the community. - The technology does not produce extra odors or other significant emissions to air, so should not promote life quality conflicts on community. - The technology energy consumption should not be significant to promote natural resources conflicts on community. - The participation and engagement of the local community should be promoted. It provides transparency, education and social pacification through relevant information to population during the activities and operations. There's an intention to participate on promotion events and communication activities with local community, such as attend to community meetings, promote installation visits, media reports on TV and Internet, newsletters publication, information by email, abstracts or scientific articles, etc. - Although there's a capability of job generation, the impact on economic growth of community should not significant. - The technology has a significant impact on pollution mitigation and health beneficiation because it contributes to wastewater treatment and improvement of sanitary conditions of community. The technology combined with anaerobic co-digestion produces biomethane that could be reused as vehicle fuel or energy recovery systems, promoting circular economy of waste. These solutions contribute positively for CO2 emissions reduction and global warming mitigation and adaption. All of these environmental aspects bring social benefits to quality of life, pollution mitigation and health or sanitary conditions. - It is expected to give information to users about the resources and origin of biomethane, recommended uses for it, or safe disposal. - The inadequate use of biomethane could arise environmental and occupational or safety risks. Is also expected to give this information to users. - User, consumer or community satisfaction surveys regarding quality of service should be done. - At dismantlement phase the equipment should be collected and sent to recommended destination (reuse or recycling) or safely dispose following all the relevant guidelines and best practices for residues.
F25: Photobioreactor (PBR) system for wastewater treatment, thermal pre-treatment and anaerobic co-digestion of cianobacteria with biogas production | H25: The technology major social impacts are: - Creation of local jobs on a technical level during operation and maintenance for the commissioned modules. - Creation of significant indirect jobs are not expected. Could be significant if was created a small economy related with large scale production of biogas, which could be used by local road vehicles or energy production. - Wastewater providers, and equipment or other material local suppliers, and waste management operators will be contracted during O&M. Waste management operators will be contracted during dismantlement. - There are ergonomic, chemical and biological contamination risks related with wastewater O&M activities for our staff. Same risks on dismantlement phase. Therefore, health and safety policies, preventive plan and measures should be implemented and emergency protocols regarding workers, beside legal requirements. - Should be feasible to have the technology installed at existing WWTP. The technology needs occupation of land to operate, but the risk of inducing conflicts or social impairments is considered not significant. - Like others WWTP, this technology could produce odors, so there is a possibility to arise life quality conflicts on community. - The technology energy consumption should not be significant to promote natural resources conflicts on community. - The participation and engagement of the local community should be promoted. It provides transparency, education and social pacification through relevant information to population during the activities and operations. There's an intention to participate on promotion events and communication activities with local community, such as attend to community meetings, promote installation visits, media reports on TV and Internet, newsletters publication, information by email, abstracts or scientific articles, etc. - Although there's a capability of job generation, the impact on economic growth of community is not significant. - The technology has a significant impact on pollution mitigation and health beneficiation because it contributes to wastewater treatment and improvement of sanitary conditions of community. The technology combined with anaerobic co-digestion produces biomethane that could be reused as vehicle fuel for transportation or energy recovery systems (electric grid supply), promoting circular economy. These solutions contribute positively for CO2 emissions reduction and global warming mitigation and adaption. All of these environmental aspects brings social benefits to quality of life, pollution mitigation and health or sanitary conditions. - These technologies allows the reuse of treated wastewater for several non-demanding uses (e.g. irrigation, washing) and avoid mineral water consumption, so could prevent some social conflicts in regions with water scarcity. - It is expected to give information to users about the resources and origin of biomethane, recommended uses for it, or safe disposal. - The inadequate use of biomethane could arise environmental and occupational or safety risks. Is also expected to give this information to users. - User, consumer or community satisfaction surveys regarding quality of service should be done. - At dismantlement phase the equipment should be collected and sent to recommended destination (reuse or recycling) or safely dispose following all the relevant guidelines and best practices for residues.
F26: Wastewater treatment by planted filter / Solid digestate (sludge) valorization on evaporative systems or wetlands for nutrient recovery | H26: The technology major social impacts are: - Creation of local jobs on a technical level during operation and maintenance for the commissioned modules. - Creation of significant indirect jobs are not expected. Could be significant if was created a small economy related with large scale production of biogas, which could be used by local road vehicles or energy production. - Wastewater providers, and equipment or other material local suppliers, and waste management operators will be contracted during O&M. Waste management operators will be contracted during dismantlement. - There are ergonomic, chemical and biological contamination risks related with wastewater O&M activities for our staff. Same risks on dismantlement phase. Therefore, health and safety policies, preventive plan and measures should be implemented and emergency protocols regarding workers, beside legal requirements. - Should be feasible to have the technology installed at existing WWTP. However, in case of a full scale and stand-alone production plant is envisaged, and considering the need of large size of territory to implement wetlands or planted filters, private land occupation and need for resettlements could be some of the emerging social issues. - This technology could produce odors and dust temporarily, so there is a possibility to arise life quality conflicts on community. - Some health and food safety issues could emerge on community generating conflicts due to lack of information related with the health and food safety when the wastewater and sludge subtracts are used to fertilize crops on farmland as sources of carbon and nutrients. and other food produced on this treated and recycled sludge and water. - The participation and engagement of the local community should be promoted. It provides transparency, education and social pacification through relevant information to population during the activities and operations. There's an intention to participate on promotion events and communication activities with local community, such as attend to community meetings, promote installation visits, media reports on TV and Internet, newsletters publication, information by email, abstracts or scientific articles, etc. - Although there's a capability of job generation, the impact on economic growth of community should not significant. - The technology has a significant impact on pollution mitigation and health beneficiation because it contributes to wastewater treatment and improvement of sanitary conditions of community. The technologies contribute to mitigation of CO2 and therefore, contribute positively to prevent climate change and air quality. Cleaning wastewater and removing nutrients from sludge has an overall benefit to pollution mitigation on local water resources. The reuse of clean water, allows less/no use of freshwater to irrigate the crops or other non-demanding uses of water. The technology allows safely reuse of recovered nutrients on agriculture soils. Contributes also to the reduction on use of artificial fertilizers which have a bad environmental footprint and which are already scarce. - These technologies allows the reuse of treated wastewater for several non-demanding uses (e.g. irrigation, washing) and avoid mineral water consumption, so could prevent some social conflicts in regions with water scarcity. - It is expected to give information to users about the resources and origin of the nutrients, best practices and recommended uses for it, and safe disposal. - Small tests showed that the use of these crops has no environmental and health risks while eating vegetables or other food produced with treated wastewater or sludge. Is also expected to give this information to users. - User, consumer or community satisfaction surveys regarding quality of service should be done. - At dismantlement phase the equipment should be collected and sent to recommended destination (reuse or recycling) or safely dispose following all the relevant guidelines and best practices for residues.
F27: Solar driven disinfection systems by anodic oxidation | H27: The technology major social impacts are: - Creation of local jobs on a technical level during operation and maintenance for the commissioned modules. - Is not expected to create significant indirect jobs. - Water or treated wastewater providers, and equipment or other material local suppliers, and waste management operators will be contracted during O&M. Waste management operators will be contracted during dismantlement. - There are ergonomic, chemical and biological contamination risks related with wastewater O&M activities for our staff, mainly on handling of chemicals during service cleaning. Same risks on dismantlement phase. Therefore, health and safety policies, preventive plan and measures should be implemented and emergency protocols regarding workers, beside legal requirements. - The technology is an integrate module which should be installed at existing WWTP. Besides usual WWTP social impacts, the technology does not produce any extra conflicts to the community. - The technology could produce some chlorine odors but should not induce life quality conflicts on community. The technology should be installed inside WWTP. - The technology energy consumption should not be significant and will be fully solar, so is not expected to promote natural resources conflicts on community. - The participation and engagement of the local community should be promoted. It provides transparency, education and social pacification through relevant information to population during the activities and operations. There's an intention to participate on promotion events and communication activities with local community, such as attend to community meetings, promote installation visits, media reports on TV and Internet, newsletters publication, information by email, abstracts or scientific articles, etc. - Although there's a capability of job generation, the impact on economic growth of community should not significant. - The technology has a significant impact on pollution mitigation and health beneficiation because it contributes to disinfection of water and treated wastewater and improvement of sanitary conditions of community. The system transforms free available Cl- into chlorine using it as a disinfection agent without using any chemicals. The system is completely solar driven and does not required any additional energy input for disinfection of treated wastewater. By polishing the treated wastewater further, it becomes process/irrigational water and thus reducing the abstraction of limited available fresh water resources. Additional water becomes available for further appliances. increasing e.g. crop yield, and can result in some economic growth (but not significant). The system contributes for climate change policies because all the technology runs with renewable energy. It could also prevent social conflicts in regions with water scarcity because the produced water can be used safely for several uses, avoiding consumption of mineral water from natural resources. - It is expected to give information to users about the resources and origin of the disinfected water, recommended uses for it, or safe disposal. There are no significant environmental or safety risks, beside the presence of chlorine on water. - User, consumer or community satisfaction surveys regarding quality of service should be done. - At dismantlement phase the equipment should be collected and sent to recommended destination (reuse or recycling) or safely dispose following all the relevant guidelines and best practices for residues.

Sheet Inputs
A1: 1 | B1: 2 | C1: 3 | D1: 4 | E1: 5 | F1: 6 | G1: 7 | H1: 8 | I1: 9 | J1: 10 | K1: 11 | L1: 12 | M1: 13 | N1: 14 | O1: 15 | P1: 16 | Q1: 17 | R1: 18 | S1: 19 | T1: 20 | U1: 21 | V1: 22 | W1: 23 | X1: 24
A2: Technology | B2: FU | C2: Reference flow | D2: Flow rate, m3/day | E2: Lifetime | F2: Concrete | G2: PVC pipes | H2: HDPE pipes | I2: Glass fibre reinforced PE pipe | J2: PE plastic parts | K2: PP plastic parts | L2: PVC plastic parts | M2: Glass fibre reinforced PE parts | N2: Pumps | O2: Flocculant PAC18% | P2: Coagulants Polyacrylamide | Q2: Polyether polyol | R2: Limestone | S2: Sodium silicate | T2: Process water | U2: Electricity | V2: PV electricity | W2: Heat | X2: Steel components
A3: Conventional wastewater treatment plant, flow rate: 30,137 m3/day | B3: 1 m3 | C3: 440000000 | D3: 30137 | E3: 40
A4: High-rate algae pond with pretreatment and settler, flow rate: 300 m3/day | B4: 1 m3 | C4: 4380000 | D4: 300 | E4: 40 | F4: =212522+9940+34675.2+501775.2 -> 758912.4 | G4: =90.84+121.23+208.57+11.02+4*50 -> 631.66 | H4: =12.4+11.16+4*80 -> 343.56 | K4: =1143 -> 1143 | L4: =6858 -> 6858 | M4: =222.56*4 -> 890.24 | N4: =458.8+195+208 -> 861.8 | O4: =82.1*1000 -> 82100 | P4: =12264 -> 12264 | U4: =78840+268056+693792+148014.926 -> 1188702.926 | X4: =30+80.67+30+850+5+85+17292.439+863.835+20*4+40*4+365.151082*4 -> 20937.54833
A5: Sequencing batch reactor with sludge settler, flow rate: 300 m3/day | B5: 1 m3 | C5: 4380000 | D5: 300 | E5: 40 | F5: =8262+49703.8+177060.3+100128.3 -> 335154.4 | G5: =205.8+44 -> 249.8 | N5: =294+294+266+266 -> 1120 | O5: 255063 | P5: 9217 | U5: =227059+755172.4+5957157.86 -> 6939389.26 | X5: =70*2+413.1014957+214.47+2485.191289+8853.015652+708+472+423.9538462+19.6223+5006.4159+240+161.34 -> 19137.11048
A6: Biogas production: 900 Nm3/day | B6: 1 Nm3 | C6: =D6*E6*365 -> 6570000 | D6: 900 | E6: 20
A7: Algae-based biogas upgrade with HRAP, flow rate: 0.05 m3/day | B7: 1 Nm3 | C7: 280390.08 | D7: 0.05 | E7: 40 | F7: =17160+36000+80640+(2812+8436)*2 -> 156296 | G7: =475 -> 475 | J7: =374.416896 -> 374.416896 | K7: =190.5 -> 190.5 | L7: =1143 -> 1143 | M7: =515 -> 515 | N7: =64+212+178 -> 454 | U7: =441504+100915.2+1240.416+203564.88 -> 747224.496 | X7: =538.343082+2882+231.315*2+100+150 -> 4132.973082
A8: Pressure swing adsorption: 26,920.7 m3/day | B8: 1 Nm3 | C8: 3248500 | D8: =633*24 -> 15192 | E8: 20 | F8: 194684.16 | K8: 1320 | N8: 16218.68 | U8: 184966.92 | X8: 42546
A9: Raw sewage sludge incineration | B9: kg | C9: 64000000 | D9: =C9/40/365 -> 4383.561644 | E9: 20
A10: Evaporative system for digestate and sludge, flow rate: 0.427 m3/day | B10: 1 m3 | C10: 5950 | D10: 0.407 | E10: 40 | H10: 228.2444 | J10: 240.25 | K10: 0.45 | N10: 98.8 | U10: 1083.9
A11: Willow zero-discharge system for wastewater, flow rate: 4 m3/day | B11: 1 m3 | C11: 58400 | D11: 4 | E11: 40 | F11: 2850 | H11: 911.008 | J11: 1187.5 | K11: 917.92 | M11: 40 | N11: 395.2 | U11: 115632 | X11: 0.104
A12: Sludge Treatment Wetland, flow rate: 0.0225 m3/day | B12: 1 m3 | C12: 328.5 | D12: =22.5/1000 -> 0.0225 | E12: 40 | G12: 15.2 | H12: 6.34 | J12: 71.8 | K12: =21.6+1.5 -> 23.1 | N12: 20.5 | U12: 36 | X12: 44.624
A13: Planted filter for outlet water from a HRAP with Phragmites australis, flow rate: 4 m3/day | B13: 1 m3 | C13: 58400 | D13: 4 | E13: 40 | F13: 658 | G13: 17.41 | H13: 93.6394 | I13: 15 | J13: 41.8 | K13: =31.7+0.992 -> 32.692 | N13: 89.2 | X13: =25.2+0.026 -> 25.226
A14: Planted filter for outlet water from a HRAP with Arundo donax, flow rate: 4 m3/day | B14: 1 m3 | C14: 58400 | D14: 4 | E14: 40 | F14: 658 | G14: 17.41 | H14: 93.6394 | I14: 15 | J14: 41.8 | K14: =31.7+0.992 -> 32.692 | N14: 89.2 | X14: =25.2+0.026 -> 25.226
A15: Planted filter with Phragmites Australis for municipal wastewater, flow rate: 4 m3/day | B15: 1 m3 | C15: 58400 | D15: 4 | E15: 40 | F15: 658 | G15: 17.91 | H15: 151.6394 | I15: 125 | J15: 41.8 | K15: =31.7+0.992 -> 32.692 | N15: 89.2 | X15: =25.2+0.026 -> 25.226
A16: Conventional chlorination, flow rate: 8 m3/day | B16: 1 m3 | C16: 116800 | D16: 8 | E16: 40 | F16: =556.8+27.84 -> 584.64 | L16: 5 | N16: 13.6 | U16: 329.6341791 | X16: 27.84
A17: A. niger-based citric acid production | B17: kg | C17: 10000000 | D17: =C17/40/365 -> 684.9315068
A18: Solar anodic oxidation: 8 m3/day | B18: 1 m3 | C18: 116800 | D18: 8 | E18: 40 | F18: 0 | G18: 122 | H18: 14.8 | I18: 0 | J18: 0 | K18: 0 | L18: 0 | M18: 10.6 | N18: 47.6 | O18: 0 | P18: 0 | Q18: 0 | R18: 0 | S18: 0 | T18: 0 | U18: 0 | V18: 0 | W18: 0 | X18: 0
A19: no information

Sheet Results
A1: 1 | B1: 2 | C1: 3 | D1: 4 | E1: 5 | F1: 6 | G1: 7 | H1: 8 | I1: 9 | J1: 10 | K1: 11 | L1: 12 | M1: 13 | N1: 14 | O1: 15 | P1: 16 | Q1: 17
B2: GWP | C2: EP | D2: AP | E2: HTP | F2: Primary energy demand | G2: Description | H2: INPUT | M2: OUTPUT
B3: kg CO2-eq./FU | C3: kg PO4 eq./FU | D3: kg SO4 eq./FU | E3: kg DCB eq./FU | F3: MJ/FU
A4: Conventional wastewater treatment plant, flow rate: 30,137 m3/day | B4: 0.5380404481 | C4: 0.01476406699 | D4: 0.004730964352 | E4: 0.7531376444 | F4: 5.934873072 | G4: This technology contains mechanical, biological and chemical treatment steps for the waste water, and treatment steps for the sludge. The outflow goes directly to the receiving water. The sewage passes through the bar screens for rag removal. Next, the sewage is transported to the grit tanks. In the separator suspended particles such as oils, fats are removed. The settlement tank can remove the larger suspended solids. The aeration tanks provide a location where biological treatment of the sewage takes place. The activated sludge converts organic substances into oxidised products, which are settled out in the secondary clarifiers. Phosphoric acid is used as nutrient for micro-organisms. The cleared overflow in the secondary clarifiers goes to a natural surface water body. The settled solids are pumped to the primary thickener where the solids are thickened. The sludge is pumped to filter presses for dewatering, which use chemical flocculants to separate the water from the solids. Next, the sludge is getting dried with thermal energy. The dried sludge is fed into an incinerator, which produces energy for the wastewater treatment plant. | H4: n.a. | I4: n.a. | J4: n.a. | K4: n.a. | L4: n.a. | M4: n.a. | N4: n.a. | O4: n.a. | P4: n.a. | Q4: n.a.
A5: High-rate algae pond with pretreatment and settler, flow rate: 300 m3/day | B5: =Parameter_tables!K53/Inputs!$C$4 -> 0.1100036408 | C5: =Parameter_tables!L53/Inputs!$C$4 -> 9.586682329e-05 | D5: =Parameter_tables!M53/Inputs!$C$4 -> 0.0005329686576 | E5: =Parameter_tables!N53/Inputs!$C$4 -> 0.4829104373 | F5: =Parameter_tables!O53/Inputs!$C$4 -> 1.676124851 | G5: This technology is based on a mixture of algae and bacteria that consume the contaminants in the provided wastewater in a collaborative way. Due to this collaboration aeration is not needed that saves a lot of energy. The plant was designed to treat 300 m3 WW per day. The municipal WW first passes a rotary drum filter selecting out solid particles bigger than 1 mm. This pretreatment phase additionally has two pumps and an open tank to store the sold wastes. From here the filtered WW is continuously led to theraceway ponds with an average flow of 12.5 m3/hour. The raceway ponds have an active surface of 3000 m2, a volume of 900 m3, and are designed to operate at a 36-hour hydraulic retention time. The HRAP uses a new less energy intensive patented mixing system (LEAR) with an effective flow pumped of 0.49 m3/s. In the next step the treated WW from the HRAP is led to the separator (DAFAST), where the algae sludge is flocculated and separated from water fraction. The separator consists of a conical flotation tank, a clear water tank, a collection tank, agitator, three pumps, and a polymere dosing unit. In this phase the coagulant poly-aluminum-chlorid and the flocculant polyacrylamide is added. After separation cleared WW is led to the effluent and sludge with 4% dry matter is delivered from the plant. | H5: BOD [mg/L] 350 | I5: COD [mg/L] 800 | J5: TSS [mg/L] 500 | K5: TKN [mg/L] 67 | L5: TP [mg/L] 10 | M5: BOD [mg/L] 9 | N5: COD [mg/L] 80 | O5: TSS [mg/L] 20 | P5: TKN [mg/L] 15 | Q5: TP [mg/L] 1
A6: Sequencing batch reactor with sludge settler, flow rate: 300 m3/day | B6: =Parameter_tables!K54/Inputs!$C$5 -> 0.2750066963 | C6: =Parameter_tables!L54/Inputs!$C$5 -> 0.0001644054736 | D6: =Parameter_tables!M54/Inputs!$C$5 -> 0.001155244451 | E6: =Parameter_tables!N54/Inputs!$C$5 -> 0.4617079979 | F6: =Parameter_tables!O54/Inputs!$C$5 -> 4.782091793 | G6: The WW treatment plant was designed to clear a WW inflow of max. 300 m3/day, (1,600 PE).The SBR plant consists of a pretreatment unit with a filter and sand trap, a buffer tank, an SBR tank, and a sludge tank. The WW treated has exclusively municipal origins and first passes a filter, where the larger solid particles are selected out. Then the WW passes a sand trap (7 m3) and a buffer tank (110 m3) with a WW pump. Here is the WW stored for the next cycle in the SBR. Up here this phase is considered as pretreatment. Next, WW is treated in the 884 m3 SBR tank. In this tank 3 cycles of WW treatment are done per day, each lasting for 8 hours following this schedule: filling 57.47 min., anaerobic mixing 120 min., react – aerobic mixing 120 min., anoxic mixing 30 min, settle 90 min., decant 57.47 min., idle 4.8 min. Subsequent to the SBR tank, a sludge tank is included where the settled sludge is treated with the addition of PAM (Praestol) to thicken and to obtain a dry matter content of the sludge comparable to the dry matter content of the algal biomass after separation (i.e. ca. 3.5-4.8%). | H6: BOD [mg/L] 350 | I6: COD [mg/L] 800 | J6: TSS [mg/L] 500 | K6: TKN [mg/L] 67 | L6: TP [mg/L] 10 | M6: BOD [mg/L] 6.75 | N6: COD [mg/L] 28.68 | O6: TSS [mg/L] 10 | P6: TN [mg/L] 12.35 | Q6: TP [mg/L] 1.34
A7: Biogas production: 900 Nm3/day | B7: 0.2730035947 | C7: 0.001797452801 | D7: 0.002529044185 | E7: -0.009640276529 | F7: 2.267830886 | G7: Organic wastes and energy crops of 140 t per day are anaerobically fermented with a pretreatment. Pretreatment means sorting out impurities as well as grinding the material. The fermentation is a continuous two-phase digestion of wet fermentation with mesophilic conditions. Dry matter content is 20%. After the digestion, the digestate is separated into a solid and a liquid phase. The liquid phase is partly reused in the fermentation process. The parasitic electricity consumption of the produced electricity is set to 7.8 %. The electrical efficiency of the CHP is 35 %. Desulphurization is done by a biological scrubber and by impregnated activated carbon. | H7: n.a. | I7: n.a. | J7: n.a. | K7: n.a. | L7: n.a. | M7: n.a. | N7: n.a. | O7: n.a. | P7: n.a. | Q7: n.a.
A8: Algae-based biogas upgrade with HRAP, flow rate: 0.05 m3/day | B8: =Parameter_tables!K56/Inputs!$C$7 -> 0.6965764944 | C8: =Parameter_tables!L56/Inputs!$C$7 -> 0.005596752794 | D8: =Parameter_tables!M56/Inputs!$C$7 -> 0.008717423756 | E8: =Parameter_tables!N56/Inputs!$C$7 -> 6.80606253 | F8: =Parameter_tables!O56/Inputs!$C$7 -> 11.15269113 | G8: The Demo scale plant was composed of a 9.6 m3 HRAP with an illuminated surface of 32 m2 interconnected to a 7 m3 settler and a 150 L bubble absorption column. The bubble column was provided with a membrane diffuser AFD-270 located at the bottom of the column. The HRAP was divided by a central wall and baffles in each side of the curvature. The internal recirculation velocity of the cultivation broth in the HRAP was 25 cm s-1, which was provided by 6-blade paddlewheel. The HRAP was fed with raw domestic wastewater at 113 L h-1. This flow rate resulted in an initial hydraulic retention time (HRT) in the HRAP of 3.5 days, which was then increased to 8 days by decreasing the raw wastewater flowrate in order to test the influence of this variable. The cultivation broth was pumped from the HRAP to the settler. The HRT in the settler was 7 hours. The settled biomass was recirculated to the HRAP operated with a flow rate equivalent to 20% of the wastewater inlet flowrate. The clarified effluent from the settler was collected in a 100 L tank before being pumped to the bubble column. The liquid phase with the CO2 and H2S absorbed exited the bottom of the absorption column and returned to the HRAP. On the other hand, the biogas obtained from an anaerobic digester prior to be stored in a gasometer was sparged at the bottom of the bubble column under counter-current flow operation. For this purpose, a vacuum pump was timed in order to obtain the inorganic carbon necessary to maintain a biomass productivity of 53 g m-2 d-1 assuming a C content of 50%. | H8: WW COD [mg/L] 500 | I8: WW TN [mg/L] 500 | J8: CH4 [%] 68.4±1.6 | K8: CO2 [%] 34.0±1.8 | L8: H2S [ppm] 2068±991 | M8: WW COD [mg/L] 50 | N8: WW TN [mg/L] 500 | O8: CH4 [%] 86.8±1.6 | P8: CO2 [%] 3.4 | Q8: H2S [ppm] 62.04
A9: Pressure swing adsorption: 26,920.7 m3/day | B9: =Parameter_tables!K57/Inputs!$C$8 -> 0.112908589 | C9: =Parameter_tables!L57/Inputs!$C$8 -> 0.0001005364944 | D9: =Parameter_tables!M57/Inputs!$C$8 -> 0.0006594424395 | E9: =Parameter_tables!N57/Inputs!$C$8 -> 1.274082572 | F9: =Parameter_tables!O57/Inputs!$C$8 -> 1.473704747 | G9: The biogas upgrade plant is located in Brandis, Saxony, Germany and treats 26920.7 m3 biogas per day. The plant is built together with a biogas plant and uses the pressure swing adsorption (PSA) technology. Since in the PSA technology H2S is irreversibly captured by the adsorbent material, desulfurization has to be placed before PSA. This is done with a biological pretreatment section connected to the technology as a first purification step. After this step, the biogas is filtered with active carbon to remove the rest of H2S. In the third step, the desulfurized biogas is chilled to remove moisture. Then, the dry biogas is compressed and pumped to a pressurized vessel with an adsorbent, in this case active carbon, to temporary adsorb carbon dioxide. In the next step, the purified methane is led to a gas container and the pressurized vessel is revitalized with a slight vacuum which clears the adsorbent from carbon dioxide and from a small fraction of captured methane too. This gas mixture is called waste gas and is burned with a flameless oxidation burner to heat the biogas plant. The purified biogas is injected to the natural gas net. | H9: CH4 [%] 52.2 | I9: CO2 [%] 47 | J9: H2S [%] 1 | M9: CH4 [%] 96 | N9: CO2 [%] 3.5 | O9: H2S [ppm] 1
A10: Raw sewage sludge incineration | B10: 0.00138596798 | C10: 8.825086518e-06 | D10: 1.207782801e-05 | E10: 0.0002281672337 | F10: 0.0142744828 | G10: This technology represents the activity of waste disposal of raw sewage sludge in a municipal solid waste incinerator. The produced slag is landfilled. The calculation comprises direct emissions too. | H10: n.a. | I10: n.a. | J10: n.a. | K10: n.a. | L10: n.a. | M10: n.a. | N10: n.a. | O10: n.a. | P10: n.a. | Q10: n.a.
A11: Evaporative system for digestate and sludge, flow rate: 0.427 m3/day | B11: =Parameter_tables!K59/Inputs!$C$10 -> 6.289991085 | C11: =Parameter_tables!L59/Inputs!$C$10 -> 0.1624804806 | D11: =Parameter_tables!M59/Inputs!$C$10 -> 0.2106522961 | E11: =Parameter_tables!N59/Inputs!$C$10 -> 161.5216667 | F11: =Parameter_tables!O59/Inputs!$C$10 -> 96.31174788 | G11: An evaporative system is a constructed treatment wetland with zero discharge. The system is a pit dug into the ground and lined with a 0.5 mm PE film protected by a layer of 180 grams/m2 geotextile on both sides against stabs done by sharp items. There is a bottom drain inside the system for flushing of salt sediments when necessary. The pit is filled up with the soil dug out onsite and a layer of washed sand (grain diameters 0-4 mm) as a distribution layer for wastewater or water from sludge. Wastewater and sludge is distributed at middle of the longer axis of the facility under U-shaped plastic tunnels, e.g. rainwater gutters. They cover a ditch with a volume fitted for at least ten years of sludge. The surface of the site is covered with trees. In subtropical areas Eucalyptus camaldulensis is used and in temperate areas three clones of Salix viminalis (“Tora”, “Björn” and “Jorr”) are usually planted. Water and nutrients distributed on the site with the sludge are absorbed by the plants making room for the next charge. Trees are harvested in a 3-4 year rotation to remove/utilize the nutrients from the facility. Sludge or digestate is applied the system usually dimensioned for 10 year, i.e. sludge with approx. 30% dry matter content has to be removed after 10 years of accumulation in the system. The only energy need is the electricity for pumping. The system was developed, built, and run by the Center for Recirkulering, Denmark. | H11: COD [mg/L] 10000 | I11: TN [mg/L] 1600 | J11: TP [mg/L] 250 | M11: n.a. | N11: TN [mg/L] 3.3 | O11: TP [mg/L] 4.2
A12: Willow zero-discharge system for wastewater, flow rate: 4 m3/day | B12: =Parameter_tables!K60/Inputs!$C$11 -> 3.434235499 | C12: =Parameter_tables!L60/Inputs!$C$11 -> 0.08190307476 | D12: =Parameter_tables!M60/Inputs!$C$11 -> 0.1069405655 | E12: =Parameter_tables!N60/Inputs!$C$11 -> 81.34105429 | F12: =Parameter_tables!O60/Inputs!$C$11 -> 53.93831212 | G12: A willow zero-discharge evaporative system is a constructed treatment wetland designed for treating wastewater. The technology is a pit dug into the ground and lined with a 0.5 mm PE liner protected by a layer of 180 grams/m2 geotextile on both sides against stabs done by sharp items. There is a bottom drain inside the system for flushing of salt sediments when necessary. The pit is filled up normally with the soil dug out onsite and a layer of washed sand (grain diameters 0-4 mm) as a distribution layer for wastewater. Before wastewater is distributed the sludge is taken away by a settling tank that is emptied out normally one time per year but in big systems up to 4 times a year. This sludge can be used directly as soil conditioner and fertilizer, incinerated or landfilled. The settled wastewater is distributed in the middle of the longer axis of the facility under U-shaped plastic tunnels, e.g. turned-around rainwater gutters. The width of the tunnel is determined by the amount of distributed materials that can freely percolate into the system without evaporation. The surface of the site is covered with trees. In subtropical areas Eucalyptus camaldulensis is used and in temperate areas three clones of Salix viminalis (“Tora”, “Björn” and “Jorr”) are usually planted. Trees are harvested in a 3-4 year rotation to remove/utilize the nutrients from the facility. If sludge or digestate is applied the system is dimensioned for 10 year. The only energy need is the electricity for pumping. The system was developed, built, and run by the Center for Recirkulering, Denmark. | H12: COD [mg/L] 587.6 | I12: TN [mg/L] 86.22 | J12: TP [mg/L] 6.2 | M12: no discharge | N12: no discharge | O12: no discharge
A13: Sludge Treatment Wetland, flow rate: 0.0225 m3/day | B13: =Parameter_tables!K61/Inputs!$C$12 -> 34.67507329 | C13: =Parameter_tables!L61/Inputs!$C$12 -> 0.8804370124 | D13: =Parameter_tables!M61/Inputs!$C$12 -> 1.146137015 | E13: =Parameter_tables!N61/Inputs!$C$12 -> 887.1158006 | F13: =Parameter_tables!O61/Inputs!$C$12 -> 522.5991624 | G13: The Sludge Treatment Wetland is a constructed treatment wetland designed for treating wastewater sludge of digestate. The system is a 1.5 m deep pit lined with a 1 mm PE film protected by a layer of 180 g/m2 geotextile on both sides against stabs done by sharp items. The system is dimensioned for a maximum load of 35 kg/m2 sludge in total during first year of operation and 65 kg/m2 of sludge in the following years. The upper geotextile on the surface has to be covered especially in subtropical areas because it can be degraded by the sun. An aerated drain pipe system ending up in an outlet pipe is installed at the bottom of the pit. The outlet pipe is connected with a level pipe in order to adjust the water level in the facility. The drain pipes are covered with 0.2 m layer of coarse gravel, 0.15 m layer of smaller gravel, and finally a layer washed filter sand with a grain diameter of 0-4 or 0- 2 mm. On the surface of the wetland plants are grown. For planting the filter sand is mixed with sludge and then planted with 4-5 shoots Phragmites australis per m2. The sludge is distributed via a fixed pipeline or with a flexible hose. When distributed the sludge stays on top of the sand layer and can even dry out building a hard layer. The hollow stems and roots of the plant Phragmites australis provide aeration for the degrading process, mix the filter material within the system, and fragment the hard surface of sludge. When the sludge layer on the top extends 1 m it is taken out. This layer can have 30% dry matter content. In the next period Phragmites start growing again from the left over roots. The only energy need is the electricity for pumping. | H13: COD [mg/L] 12694 | I13: TN [mg/L] 1331 | J13: TP [mg/L] 120.8 | M13: n.a. | N13: n.a. | O13: TP [mg/L] 0.487
A14: Planted filter for outlet water from a HRAP with Phragmites australis, flow rate: 4 m3/day | B14: =Parameter_tables!K62/Inputs!$C$13 -> 0.1245748848 | C14: =Parameter_tables!L62/Inputs!$C$13 -> 0.002886482395 | D14: =Parameter_tables!M62/Inputs!$C$13 -> 0.003791153302 | E14: =Parameter_tables!N62/Inputs!$C$13 -> 2.916355752 | F14: =Parameter_tables!O62/Inputs!$C$13 -> 1.966218594 | G14: A planted filter is a constructed treatment wetland cleaning water with bacteria and recycling 50 % of the outlet water back to the surface of the system. The recycled water is mixed with fresh organic matter from newly distributed water from the High Rate Algae Pond in order to have enough carbon for a better denitrification. The planted filter is a lined pit with a PE film protected on both sides by a 180g/m2 geotextile layer against stabs done by sharp items. Each of two systems has a surface of 50 m2. In the bottom is an aerated drain settled into a layer of 0.15 m washed gravel (grain diameters 8-16 mm). Above this is a > 0.5 m layer of washed filter sand (grain diameters 0-4 mm). On top of the sand is a distribution pipe system installed for distributing water equally. The surface of the system is planted with Phragmites australis in a density of 4 plants per m2. Plants can be used for compost harvested in subtropical areas in January before the new stems start growing from the roots. In temperate areas harvest needs to wait until frost has ended, because the biomass protects the facility from low temperatures. Nevertheless the biomass production is low. The output water is led to a well before discharge where N and P can be adsorbed and recycled. The only energy need is for distributing the inlet water with a pump. | H14: COD [mg/L] 68.36 | I14: TN [mg/L] 45.2 | J14: Orto-P [mg/L] 0.686 | M14: COD [mg/L] 32.76 | N14: TN [mg/L] 41.3 | O14: Orto-P [mg/L] 2.232
A15: Planted filter for outlet water from a HRAP with Arundo donax, flow rate: 4 m3/day | B15: =Parameter_tables!K63/Inputs!$C$14 -> 0.1245748848 | C15: =Parameter_tables!L63/Inputs!$C$14 -> 0.002886482395 | D15: =Parameter_tables!M63/Inputs!$C$14 -> 0.003791153302 | E15: =Parameter_tables!N63/Inputs!$C$14 -> 2.916355752 | F15: =Parameter_tables!O63/Inputs!$C$14 -> 1.966218594 | G15: A planted filter is a constructed treatment wetland clearing water with bacteria and recycling 50 % of the outlet water back to the surface of the system. The recycled water is mixed with fresh organic matter from newly distributed water from the High Rate Algae Pond in order to have enough carbon for a better denitrification. The planted filter is a lined pit with a PE film protected on both sides by a 180g/m2 geotextile layer against stabs done by sharp items. The system has a surface of 50 m2. In the bottom is an aerated drain settled into a layer of 0.15 m washed gravel (grain diameters 8-16 mm). Above this is a > 0.5 m layer of washed filter sand (grain diameters 0-4 mm). On top of the sand is a distribution pipe system installed for distributing water equally. The surface of the system is planted with Arundo donax in a density of 3 plants per m2. Plants can be used for compost harvested in subtropical areas in January before the new stems start growing from the roots. In temperate areas harvest needs to wait until frost has ended, because the biomass protects the facility from low temperatures. The biomass production can be very high. The output water is led to a well before discharge where N and P can be adsorbed and recycled. The only energy need is for distributing the inlet water with a pump. | H15: COD [mg/L] 68.36 | I15: TN [mg/L] 45.2 | J15: Orto-P [mg/L] 0.686 | M15: COD [mg/L] 31.34 | N15: TN [mg/L] 33.78 | O15: Orto-P [mg/L] 1.98
A16: Planted filter with Phragmites Australis for municipal wastewater, flow rate: 4 m3/day | B16: =Parameter_tables!K64/Inputs!$C$15 -> 0.1294405862 | C16: =Parameter_tables!L64/Inputs!$C$15 -> 0.00288764557 | D16: =Parameter_tables!M64/Inputs!$C$15 -> 0.003801741734 | E16: =Parameter_tables!N64/Inputs!$C$15 -> 2.916760346 | F16: =Parameter_tables!O64/Inputs!$C$15 -> 2.117533309 | G16: A planted filter is a constructed treatment wetland cleaning water with bacteria and recycling 50 % of the outlet water back to the system. This outlet water is led to a mixing well where it is mixed with fresh organic matter from the municipal wastewater in order to have enough carbon for a better denitrification. The system input is municipal wastewater first led to a rotating grid with 1 mm holes, then to a settling tank and finally to a pump well for distribution. The outlet is led to a split well where half of the water goes back to the pump well and the other half run out. In that way 10 % of the water is recycled. The planted filter is a lined pit with a PE film protected on both sides by a 180g/m2 geotextile layer against stabs done by sharp items. The system has a surface of 50 m2. In the bottom is an aerated drain settled into a layer of 0.15 m washed gravel (grain diameters 8-16 mm). Above this is a > 0.5 m layer of washed filter sand (grain diameters 0-4 mm). On top of the sand is a distribution pipe system installed for distributing water equally. The surface of the system is planted with Phragmites australis in a density of 4 plants per m2. Plants can be used for compost harvested in subtropical areas in January before the new stems start growing from the roots. In temperate areas harvest needs to wait until frost has ended, because the biomass protects the facility from low temperatures. The biomass production is relatively high. The output water is led to a well where N and P can be adsorbed and recycled. The only energy need is for distributing the inlet water with a pump. The system was developed by Hans Brix, Aarhus University, Denmark. | H16: COD [mg/L] 578.6 | I16: TN [mg/L] 86.22 | J16: Orto-P [mg/L] 6.212 | M16: COD [mg/L] 161.6 | N16: TN [mg/L] 60.22 | O16: Orto-P [mg/L] 9.338
A17: Conventional chlorination, flow rate: 8 m3/day | B17: 0.001367320571 | C17: 4.23089578e-07 | D17: 4.306860599e-06 | E17: 0.001394605386 | F17: 0.018028526 | G17: This chlorination unit was plant to have the same purification effect as the anodic oxidation technology. Thus, it works with a concentration of 10.5 mg/L chlorine in a sodium hypochlorite solution. The technology comprises a concrete contact tank of 1.2x0.8 m in a zig-zag format to guarantee 15 minute contact time of water with chlorine. In addition, a dosing pump and a 100 L PE tank for storing the sodium hypochlorite solution is included. The cleaned wastewater is led to the contact tank where it is mixed with the appropriate amount of chlorine and then it is discharged to the effluent. | H17: COD [mg/L] 20-40 | I17: Turbidity [NTU] 5 | J17: Pathogens 100000 | K17: 0 | L17: 0 | M17: COD [mg/L] 20-30 | N17: Turbidity [NTU] 0.15-0.3 | O17: Pathogens 0
A18: A. niger-based citric acid production | B18: 27.17231906 | C18: 0.05039725944 | D18: 0.2061582116 | E18: 16.59861173 | F18: 326.8544686 | G18: Citric acid is produced by a submerged fermentation process which employs a strain of the micro-organism Aspergillus niger to convert sugar into citric acid: The carbohydrate substrate (glucose syrup or sugar), which is made from European corn or sugar beet, is heat treated and inoculated with Aspergillus niger. After the fermentation the biological solids (mycelium) are removed. Then citric acid is recovered from the remaining broth and the resulting citric acid solution is purified by ion exchange and carbon treatment. Finally the citric acid solution is evaporated, and citric acid is crystallized, dried and sieved. Energy (natural gas and electricity) is used in Europe. Steam is generated by modern evaporation facilities. | H18: n.a. | I18: n.a. | J18: n.a. | K18: n.a. | L18: n.a. | M18: n.a. | N18: n.a. | O18: n.a. | P18: n.a. | Q18: n.a.
A19: Solar anodic oxidation: 8 m3/day | B19: 0.00610690732 | C19: 2.636482019e-06 | D19: 2.597694729e-05 | E19: 0.01005930212 | F19: 0.1145245253 | G19: The disinfection of treated wastewater is required for different reuse options, among them for irrigation, sanitation (flushing, washing), cooling, and other industrial needs. These reuse applications require an additional residual disinfection treatment step based on chlorination. Especially in small scale remote wastewater treatment applications chlorine is not easily available and storage as well as handling requires special security measures. In those cases the electrolytic onsite chlorine production poses an environmentally friendly, safe and economic alternative. The by AUTARCON developed technology produces a diluted (<0.5 g/L) chlorine solution at the site of treatment using the natural chloride content of the treated wastewater and solar produced electricity. The solution is then dosed into the treated wastewater to meet the required residual disinfectant concentration – generally in the range of 0.5 - 1 mg/L. An integrated online sensor setting assures that pathogen indicator organisms are completely absent (0 CFU/100ml), allowing reuse applications, with strictest requirements on the water quality. Prior to the disinfection process the wastewater is filtrated using Activated Filtration Media to achieve turbidity rates below 0.5 NTU. About 1% of the disinfected wastewater is de-hardened and then reused for the production of the chlorine solution. All operational data are transferred online allowing remote supervision of the disinfection system and the water quality. The station operates completely autonomous, which includes backwashing of the filter, regenerating the softener, and the chlorine production as well as its dosing. This way, maintenance intervals can be reduced to an annual system and sensor performance checkup, which does not require special technical skills. | H19: COD [mg/L] 20-40 | I19: Turbidity [NTU] 5 | J19: Pathogens 100000 | K19: 0 | L19: 0 | M19: COD [mg/L] 20-30 | N19: Turbidity [NTU] 0.15-0.3 | O19: Pathogens 0 | P19: 0 | Q19: 0
A20: no information

Sheet Parameter_tables
D1: GWP | E1: EP | F1: AP | G1: HTP | H1: PE | I1: Costs
A2: Construction | I2: €/unit
A3: Circulating pump 250-1000W, kg | B3: Pump | C3: Pumps | D3: =VLOOKUP($B3,LCA_variables!$A$2:$F$24,2,FALSE) -> 3.830555168 | E3: =VLOOKUP($B3,LCA_variables!$A$2:$F$24,3,FALSE) -> 0.001267973442 | F3: =VLOOKUP($B3,LCA_variables!$A$2:$F$24,4,FALSE) -> 0.01631024089 | G3: =VLOOKUP($B3,LCA_variables!$A$2:$F$24,5,FALSE) -> 8.317209168 | H3: =VLOOKUP($B3,LCA_variables!$A$2:$F$24,6,FALSE) -> 54.45963463 | I3: 11
A4: PVC Pipe, kg | B4: PVC_pipe | C4: PVC pipes | D4: =VLOOKUP($B4,LCA_variables!$A$2:$F$24,2,FALSE) -> 3.32032499 | E4: =VLOOKUP($B4,LCA_variables!$A$2:$F$24,3,FALSE) -> 0.001194547126 | F4: =VLOOKUP($B4,LCA_variables!$A$2:$F$24,4,FALSE) -> 0.01480135109 | G4: =VLOOKUP($B4,LCA_variables!$A$2:$F$24,5,FALSE) -> 6.269909423 | H4: =VLOOKUP($B4,LCA_variables!$A$2:$F$24,6,FALSE) -> 65.85911877 | I4: 14
A5: HDPE Pipe, kg | B5: HDPE_pipe | C5: HDPE pipes | D5: =VLOOKUP($B5,LCA_variables!$A$2:$F$24,2,FALSE) -> 2.020678544 | E5: =VLOOKUP($B5,LCA_variables!$A$2:$F$24,3,FALSE) -> 0.0004891316015 | F5: =VLOOKUP($B5,LCA_variables!$A$2:$F$24,4,FALSE) -> 0.00438936632 | G5: =VLOOKUP($B5,LCA_variables!$A$2:$F$24,5,FALSE) -> 0.1692628478 | H5: =VLOOKUP($B5,LCA_variables!$A$2:$F$24,6,FALSE) -> 82.91844316 | I5: 6.2
A6: Glass fibre reinforced pipe, kg | B6: GFR_pipe | C6: Glass fibre reinforced PE pipes | D6: =VLOOKUP($B6,LCA_variables!$A$2:$F$24,2,FALSE) -> 1.502704012 | E6: =VLOOKUP($B6,LCA_variables!$A$2:$F$24,3,FALSE) -> 0.0003542049441 | F6: =VLOOKUP($B6,LCA_variables!$A$2:$F$24,4,FALSE) -> 0.003239822565 | G6: =VLOOKUP($B6,LCA_variables!$A$2:$F$24,5,FALSE) -> 0.09705529229 | H6: =VLOOKUP($B6,LCA_variables!$A$2:$F$24,6,FALSE) -> 36.31436402 | I6: 18
A7: Concrete with concrete pumping, kg | B7: Concrete | C7: Concrete | D7: =VLOOKUP($B7,LCA_variables!$A$2:$F$24,2,FALSE) -> 0.09082229196 | E7: =VLOOKUP($B7,LCA_variables!$A$2:$F$24,3,FALSE) -> 2.754389775e-05 | F7: =VLOOKUP($B7,LCA_variables!$A$2:$F$24,4,FALSE) -> 0.0001719163126 | G7: =VLOOKUP($B7,LCA_variables!$A$2:$F$24,5,FALSE) -> 0.02613512523 | H7: =VLOOKUP($B7,LCA_variables!$A$2:$F$24,6,FALSE) -> 0.5052763119 | I7: 0.04384650072
A8: Steel components, kg | B8: Steel | C8: Steel components | D8: =VLOOKUP($B8,LCA_variables!$A$2:$F$24,2,FALSE) -> 6.140662804 | E8: =VLOOKUP($B8,LCA_variables!$A$2:$F$24,3,FALSE) -> 0.006896879659 | F8: =VLOOKUP($B8,LCA_variables!$A$2:$F$24,4,FALSE) -> 0.04142901941 | G8: =VLOOKUP($B8,LCA_variables!$A$2:$F$24,5,FALSE) -> 93.96062731 | H8: =VLOOKUP($B8,LCA_variables!$A$2:$F$24,6,FALSE) -> 76.80068674
A9: PVC film, kg | B9: PVC_film | C9: PVC plastic parts | D9: =VLOOKUP($B9,LCA_variables!$A$2:$F$24,2,FALSE) -> 3.26159702 | E9: =VLOOKUP($B9,LCA_variables!$A$2:$F$24,3,FALSE) -> 0.001191911377 | F9: =VLOOKUP($B9,LCA_variables!$A$2:$F$24,4,FALSE) -> 0.01456402829 | G9: =VLOOKUP($B9,LCA_variables!$A$2:$F$24,5,FALSE) -> 6.475107651 | H9: =VLOOKUP($B9,LCA_variables!$A$2:$F$24,6,FALSE) -> 68.10067328 | I9: 8
A10: PP film, kg | B10: PP_film | C10: PP plastic parts | D10: =VLOOKUP($B10,LCA_variables!$A$2:$F$24,2,FALSE) -> 3.241640363 | E10: =VLOOKUP($B10,LCA_variables!$A$2:$F$24,3,FALSE) -> 0.001180427549 | F10: =VLOOKUP($B10,LCA_variables!$A$2:$F$24,4,FALSE) -> 0.01592281678 | G10: =VLOOKUP($B10,LCA_variables!$A$2:$F$24,5,FALSE) -> 0.02739530345 | H10: =VLOOKUP($B10,LCA_variables!$A$2:$F$24,6,FALSE) -> 97.70913536 | I10: 6.72
A11: Glass fibre reinforced polyamide, kg | B11: GFR_plastic | C11: Glass fibre reinforced PE parts | D11: =VLOOKUP($B11,LCA_variables!$A$2:$F$24,2,FALSE) -> 9.053458282 | E11: =VLOOKUP($B11,LCA_variables!$A$2:$F$24,3,FALSE) -> 0.008925628948 | F11: =VLOOKUP($B11,LCA_variables!$A$2:$F$24,4,FALSE) -> 0.03651061543 | G11: =VLOOKUP($B11,LCA_variables!$A$2:$F$24,5,FALSE) -> 1.093706762 | H11: =VLOOKUP($B11,LCA_variables!$A$2:$F$24,6,FALSE) -> 143.6019341 | I11: 18
A12: Photovoltaics, electric installation for 3kWp module, at building, kW | B12: PV_install | C12: PV installation | D12: =VLOOKUP($B12,LCA_variables!$A$2:$F$24,2,FALSE) -> 151.7532075 | E12: =VLOOKUP($B12,LCA_variables!$A$2:$F$24,3,FALSE) -> 4.022843574 | F12: =VLOOKUP($B12,LCA_variables!$A$2:$F$24,4,FALSE) -> 5.204603224 | G12: =VLOOKUP($B12,LCA_variables!$A$2:$F$24,5,FALSE) -> 3996.614185 | H12: =VLOOKUP($B12,LCA_variables!$A$2:$F$24,6,FALSE) -> 2273.910467 | I12: =5000/3 -> 1666.666667
A13: Electricity grid mix EU 28, MJ | B13: Electricity | C13: Electricity | D13: =VLOOKUP($B13,LCA_variables!$A$2:$F$24,2,FALSE) -> 0.1158895676 | E13: =VLOOKUP($B13,LCA_variables!$A$2:$F$24,3,FALSE) -> 3.066915776e-05 | F13: =VLOOKUP($B13,LCA_variables!$A$2:$F$24,4,FALSE) -> 0.0003273105588 | G13: =VLOOKUP($B13,LCA_variables!$A$2:$F$24,5,FALSE) -> 0.006433454657 | H13: =VLOOKUP($B13,LCA_variables!$A$2:$F$24,6,FALSE) -> 2.212066412 | I13: 0.028
A14: Electricity from photovoltaic, MJ | B14: PV_electricity | C14: PV electricity | D14: =VLOOKUP($B14,LCA_variables!$A$2:$F$24,2,FALSE) -> 0.01342076207 | E14: =VLOOKUP($B14,LCA_variables!$A$2:$F$24,3,FALSE) -> 4.265384963e-06 | F14: =VLOOKUP($B14,LCA_variables!$A$2:$F$24,4,FALSE) -> 5.337437393e-05 | G14: =VLOOKUP($B14,LCA_variables!$A$2:$F$24,5,FALSE) -> 0.009726442454 | H14: =VLOOKUP($B14,LCA_variables!$A$2:$F$24,6,FALSE) -> 0.1882082195 | I14: 0.1
A15: Process steam from natural gas, MJ | B15: Steam | C15: Heat | D15: =VLOOKUP($B15,LCA_variables!$A$2:$F$24,2,FALSE) -> 0.07847229819 | E15: =VLOOKUP($B15,LCA_variables!$A$2:$F$24,3,FALSE) -> 7.882077607e-06 | F15: =VLOOKUP($B15,LCA_variables!$A$2:$F$24,4,FALSE) -> 4.457260603e-05 | G15: =VLOOKUP($B15,LCA_variables!$A$2:$F$24,5,FALSE) -> 0.004663226589 | H15: =VLOOKUP($B15,LCA_variables!$A$2:$F$24,6,FALSE) -> 1.449764569 | I15: =49.53/3.6/1000 -> 0.01375833333
A16: Polyacrylamide, kg | B16: PAM | C16: Coagulants Polyacrylamide | D16: =VLOOKUP($B16,LCA_variables!$A$2:$F$24,2,FALSE) -> 2.87713356 | E16: =VLOOKUP($B16,LCA_variables!$A$2:$F$24,3,FALSE) -> 0.008752718016 | F16: =VLOOKUP($B16,LCA_variables!$A$2:$F$24,4,FALSE) -> 0.01668714907 | G16: =VLOOKUP($B16,LCA_variables!$A$2:$F$24,5,FALSE) -> 1.323716187 | H16: =VLOOKUP($B16,LCA_variables!$A$2:$F$24,6,FALSE) -> 69.74347299 | I16: =2412.93/1000 -> 2.41293
A17: Polyether polyol, kg | B17: PEP | C17: Polyether polyol | D17: =VLOOKUP($B17,LCA_variables!$A$2:$F$24,2,FALSE) -> 3.664238761 | E17: =VLOOKUP($B17,LCA_variables!$A$2:$F$24,3,FALSE) -> 0.005664836364 | F17: =VLOOKUP($B17,LCA_variables!$A$2:$F$24,4,FALSE) -> 0.01397862548 | G17: =VLOOKUP($B17,LCA_variables!$A$2:$F$24,5,FALSE) -> 1.389237393 | H17: =VLOOKUP($B17,LCA_variables!$A$2:$F$24,6,FALSE) -> 88.96581049
A18: Limestone flour, kg | B18: Lime | C18: Limestone | D18: =VLOOKUP($B18,LCA_variables!$A$2:$F$24,2,FALSE) -> 0.02490965437 | E18: =VLOOKUP($B18,LCA_variables!$A$2:$F$24,3,FALSE) -> 1.056329992e-05 | F18: =VLOOKUP($B18,LCA_variables!$A$2:$F$24,4,FALSE) -> 4.791885397e-05 | G18: =VLOOKUP($B18,LCA_variables!$A$2:$F$24,5,FALSE) -> 0.001446657012 | H18: =VLOOKUP($B18,LCA_variables!$A$2:$F$24,6,FALSE) -> 0.3730142913 | I18: 1.25
A19: Sodium silicate, kg | B19: Sodium_silicate | C19: Sodium silicate | D19: =VLOOKUP($B19,LCA_variables!$A$2:$F$24,2,FALSE) -> 0.7901282796 | E19: =VLOOKUP($B19,LCA_variables!$A$2:$F$24,3,FALSE) -> 0.0010945877 | F19: =VLOOKUP($B19,LCA_variables!$A$2:$F$24,4,FALSE) -> 0.004355470378 | G19: =VLOOKUP($B19,LCA_variables!$A$2:$F$24,5,FALSE) -> 0.6314565792 | H19: =VLOOKUP($B19,LCA_variables!$A$2:$F$24,6,FALSE) -> 7.930235014 | I19: 1.2067
A20: Process water, kg | B20: P_water | C20: Process water | D20: =VLOOKUP($B20,LCA_variables!$A$2:$F$24,2,FALSE) -> 0.00124329702 | E20: =VLOOKUP($B20,LCA_variables!$A$2:$F$24,3,FALSE) -> 9.937239391e-07 | F20: =VLOOKUP($B20,LCA_variables!$A$2:$F$24,4,FALSE) -> 3.240220127e-06 | G20: =VLOOKUP($B20,LCA_variables!$A$2:$F$24,5,FALSE) -> 6.619566186e-05 | H20: =VLOOKUP($B20,LCA_variables!$A$2:$F$24,6,FALSE) -> 0.02114778737 | I20: 1.91
A21: Polyaluminum chloride, kg | B21: PAC18 | C21: Flocculant PAC18% | D21: =VLOOKUP($B21,LCA_variables!$A$2:$F$24,2,FALSE) -> 0.8654108867 | E21: =VLOOKUP($B21,LCA_variables!$A$2:$F$24,3,FALSE) -> 0.001112119804 | F21: =VLOOKUP($B21,LCA_variables!$A$2:$F$24,4,FALSE) -> 0.006909723433 | G21: =VLOOKUP($B21,LCA_variables!$A$2:$F$24,5,FALSE) -> 0.5789173144 | H21: =VLOOKUP($B21,LCA_variables!$A$2:$F$24,6,FALSE) -> 12.68632203 | I21: =241.29/1000 -> 0.24129
A24: Reference systems
A25: treatment of raw sewage sludge, municipal incineration, kg | B25: Sludge | D25: =VLOOKUP($B25,LCA_variables!$A$2:$F$24,2,FALSE) -> 0.08028382459 | E25: =VLOOKUP($B25,LCA_variables!$A$2:$F$24,3,FALSE) -> 0.001032201029 | F25: =VLOOKUP($B25,LCA_variables!$A$2:$F$24,4,FALSE) -> 0.0004766308324 | G25: =VLOOKUP($B25,LCA_variables!$A$2:$F$24,5,FALSE) -> 0.02810362287 | H25: =VLOOKUP($B25,LCA_variables!$A$2:$F$24,6,FALSE) -> 0.4763244199
A26: treatment of wastewater, average, capacity 1.1E10l/year, m3 | B26: WW | D26: =VLOOKUP($B26,LCA_variables!$A$2:$F$24,2,FALSE) -> 0.5380404481 | E26: =VLOOKUP($B26,LCA_variables!$A$2:$F$24,3,FALSE) -> 0.01476406699 | F26: =VLOOKUP($B26,LCA_variables!$A$2:$F$24,4,FALSE) -> 0.004730964352 | G26: =VLOOKUP($B26,LCA_variables!$A$2:$F$24,5,FALSE) -> 0.7531376444 | H26: =VLOOKUP($B26,LCA_variables!$A$2:$F$24,6,FALSE) -> 5.934873072
A27: citric acid production, kg | B27: CA | D27: =VLOOKUP($B27,LCA_variables!$A$2:$F$24,2,FALSE) -> 27.17231906 | E27: =VLOOKUP($B27,LCA_variables!$A$2:$F$24,3,FALSE) -> 0.05039725944 | F27: =VLOOKUP($B27,LCA_variables!$A$2:$F$24,4,FALSE) -> 0.2061582116 | G27: =VLOOKUP($B27,LCA_variables!$A$2:$F$24,5,FALSE) -> 16.59861173 | H27: =VLOOKUP($B27,LCA_variables!$A$2:$F$24,6,FALSE) -> 326.8544686
A28: Biogas from biomass mix for bioenergy (2015), kg | B28: Biogas | D28: =VLOOKUP($B28,LCA_variables!$A$2:$F$24,2,FALSE) -> 0.2730035947 | E28: =VLOOKUP($B28,LCA_variables!$A$2:$F$24,3,FALSE) -> 0.001797452801 | F28: =VLOOKUP($B28,LCA_variables!$A$2:$F$24,4,FALSE) -> 0.002529044185 | G28: =VLOOKUP($B28,LCA_variables!$A$2:$F$24,5,FALSE) -> -0.009640276529 | H28: =VLOOKUP($B28,LCA_variables!$A$2:$F$24,6,FALSE) -> 2.267830886
Q30: 1 | R30: 2 | S30: 3 | T30: 4 | U30: 5 | V30: 6 | W30: 7 | X30: 8 | Y30: 9 | Z30: 10 | AA30: 11 | AB30: 12 | AC30: 13 | AD30: 14 | AE30: 15 | AF30: 16 | AG30: 17
K31: GWP | L31: EP | M31: AP | N31: HTP | O31: PE | Q31: Conventional wastewater treatment plant | R31: High-rate algae pond with pretreatment and settler | S31: Sequencing batch reactor with sludge settler | T31: Biogas production - def?? | U31: Algae-based biogas upgrade with HRAP | V31: Pressure swing adsorption | W31: Raw sewage sludge incineration | X31: Evaporative system for digestate and sludge | Y31: Willow zero-discharge system for wastewater | Z31: Sludge Treatment Wetland | AA31: Planted filter for outlet water from a HRAP with Phragmites australis | AB31: Planted filter for outlet water from a HRAP with Arundo donax | AC31: Planted filter with Phragmites Australis for municipal wastewater | AD31: Conventional chlorination | AE31: A. niger-based citric acid production | AF31: Solar anodic oxidation | AG31: =J68 -> New technology
J32: Concrete | K32: =VLOOKUP($J32,$C$3:$H$21,2,FALSE) -> 0.09082229196 | L32: =VLOOKUP($J32,$C$3:$H$21,3,FALSE) -> 2.754389775e-05 | M32: =VLOOKUP($J32,$C$3:$H$21,4,FALSE) -> 0.0001719163126 | N32: =VLOOKUP($J32,$C$3:$H$21,5,FALSE) -> 0.02613512523 | O32: =VLOOKUP($J32,$C$3:$H$21,6,FALSE) -> 0.5052763119 | Q32: =TRANSPOSE(Inputs!F3:X19) -> 0 | R32: 758912.4 | S32: 335154.4 | T32: 0 | U32: 156296 | V32: 194684.16 | W32: 0 | X32: 0 | Y32: 2850 | Z32: 0 | AA32: 658 | AB32: 658 | AC32: 658 | AD32: 584.64 | AE32: 0 | AF32: 0 | AG32: =New_tech!D56 -> 50
J33: PVC pipes | K33: =VLOOKUP($J33,$C$3:$H$21,2,FALSE) -> 3.32032499 | L33: =VLOOKUP($J33,$C$3:$H$21,3,FALSE) -> 0.001194547126 | M33: =VLOOKUP($J33,$C$3:$H$21,4,FALSE) -> 0.01480135109 | N33: =VLOOKUP($J33,$C$3:$H$21,5,FALSE) -> 6.269909423 | O33: =VLOOKUP($J33,$C$3:$H$21,6,FALSE) -> 65.85911877 | Q33: 0 | R33: 631.66 | S33: 249.8 | T33: 0 | U33: 475 | V33: 0 | W33: 0 | X33: 0 | Y33: 0 | Z33: 15.2 | AA33: 17.41 | AB33: 17.41 | AC33: 17.91 | AD33: 0 | AE33: 0 | AF33: 122 | AG33: =New_tech!D57 -> 0
J34: HDPE pipes | K34: 2.020678544 | L34: 0.0004891316015 | M34: 0.00438936632 | N34: 0.1692628478 | O34: 82.91844316 | Q34: 0 | R34: 343.56 | S34: 0 | T34: 0 | U34: 0 | V34: 0 | W34: 0 | X34: 228.2444 | Y34: 911.008 | Z34: 6.34 | AA34: 93.6394 | AB34: 93.6394 | AC34: 151.6394 | AD34: 0 | AE34: 0 | AF34: 14.8 | AG34: =New_tech!D58 -> 56
J35: Glass fibre reinforced PE pipes | K35: 1.502704012 | L35: 0.0003542049441 | M35: 0.003239822565 | N35: 0.09705529229 | O35: 36.31436402 | Q35: 0 | R35: 0 | S35: 0 | T35: 0 | U35: 0 | V35: 0 | W35: 0 | X35: 0 | Y35: 0 | Z35: 0 | AA35: 15 | AB35: 15 | AC35: 125 | AD35: 0 | AE35: 0 | AF35: 0 | AG35: =New_tech!D59 -> 0
J36: PV installation | K36: 151.7532075 | L36: 4.022843574 | M36: 5.204603224 | N36: 3996.614185 | O36: 2273.910467 | Q36: 0 | R36: 0 | S36: 0 | T36: 0 | U36: 374.416896 | V36: 0 | W36: 0 | X36: 240.25 | Y36: 1187.5 | Z36: 71.8 | AA36: 41.8 | AB36: 41.8 | AC36: 41.8 | AD36: 0 | AE36: 0 | AF36: 0 | AG36: =New_tech!D60 -> 0
J37: PP plastic parts | K37: 3.241640363 | L37: 0.001180427549 | M37: 0.01592281678 | N37: 0.02739530345 | O37: 97.70913536 | Q37: 0 | R37: 1143 | S37: 0 | T37: 0 | U37: 190.5 | V37: 1320 | W37: 0 | X37: 0.45 | Y37: 917.92 | Z37: 23.1 | AA37: 32.692 | AB37: 32.692 | AC37: 32.692 | AD37: 0 | AE37: 0 | AF37: 0 | AG37: =New_tech!D61 -> 0
J38: PVC plastic parts | K38: 3.26159702 | L38: 0.001191911377 | M38: 0.01456402829 | N38: 6.475107651 | O38: 68.10067328 | Q38: 0 | R38: 6858 | S38: 0 | T38: 0 | U38: 1143 | V38: 0 | W38: 0 | X38: 0 | Y38: 0 | Z38: 0 | AA38: 0 | AB38: 0 | AC38: 0 | AD38: 5 | AE38: 0 | AF38: 0 | AG38: =New_tech!D62 -> 0
J39: Glass fibre reinforced PE parts | K39: 9.053458282 | L39: 0.008925628948 | M39: 0.03651061543 | N39: 1.093706762 | O39: 143.6019341 | Q39: 0 | R39: 890.24 | S39: 0 | T39: 0 | U39: 515 | V39: 0 | W39: 0 | X39: 0 | Y39: 40 | Z39: 0 | AA39: 0 | AB39: 0 | AC39: 0 | AD39: 0 | AE39: 0 | AF39: 10.6 | AG39: =New_tech!D63 -> 0
J40: Pumps | K40: 3.830555168 | L40: 0.001267973442 | M40: 0.01631024089 | N40: 8.317209168 | O40: 54.45963463 | Q40: 0 | R40: 861.8 | S40: 1120 | T40: 0 | U40: 454 | V40: 16218.68 | W40: 0 | X40: 98.8 | Y40: 395.2 | Z40: 20.5 | AA40: 89.2 | AB40: 89.2 | AC40: 89.2 | AD40: 13.6 | AE40: 0 | AF40: 47.6 | AG40: =New_tech!D64 -> 200
J41: Flocculant PAC18% | K41: 0.8654108867 | L41: 0.001112119804 | M41: 0.006909723433 | N41: 0.5789173144 | O41: 12.68632203 | Q41: 0 | R41: 82100 | S41: 255063 | T41: 0 | U41: 0 | V41: 0 | W41: 0 | X41: 0 | Y41: 0 | Z41: 0 | AA41: 0 | AB41: 0 | AC41: 0 | AD41: 0 | AE41: 0 | AF41: 0 | AG41: =New_tech!D65 -> 0
J42: Coagulants Polyacrylamide | K42: 2.87713356 | L42: 0.008752718016 | M42: 0.01668714907 | N42: 1.323716187 | O42: 69.74347299 | Q42: 0 | R42: 12264 | S42: 9217 | T42: 0 | U42: 0 | V42: 0 | W42: 0 | X42: 0 | Y42: 0 | Z42: 0 | AA42: 0 | AB42: 0 | AC42: 0 | AD42: 0 | AE42: 0 | AF42: 0 | AG42: =New_tech!D66 -> 1460000
J43: Polyether polyol | K43: 3.664238761 | L43: 0.005664836364 | M43: 0.01397862548 | N43: 1.389237393 | O43: 88.96581049 | Q43: 0 | R43: 0 | S43: 0 | T43: 0 | U43: 0 | V43: 0 | W43: 0 | X43: 0 | Y43: 0 | Z43: 0 | AA43: 0 | AB43: 0 | AC43: 0 | AD43: 0 | AE43: 0 | AF43: 0 | AG43: =New_tech!D67 -> 0
J44: Limestone | K44: 0.02490965437 | L44: 1.056329992e-05 | M44: 4.791885397e-05 | N44: 0.001446657012 | O44: 0.3730142913 | Q44: 0 | R44: 0 | S44: 0 | T44: 0 | U44: 0 | V44: 0 | W44: 0 | X44: 0 | Y44: 0 | Z44: 0 | AA44: 0 | AB44: 0 | AC44: 0 | AD44: 0 | AE44: 0 | AF44: 0 | AG44: =New_tech!D68 -> 0
J45: Sodium silicate | K45: 0.7901282796 | L45: 0.0010945877 | M45: 0.004355470378 | N45: 0.6314565792 | O45: 7.930235014 | Q45: 0 | R45: 0 | S45: 0 | T45: 0 | U45: 0 | V45: 0 | W45: 0 | X45: 0 | Y45: 0 | Z45: 0 | AA45: 0 | AB45: 0 | AC45: 0 | AD45: 0 | AE45: 0 | AF45: 0 | AG45: =New_tech!D69 -> 0
J46: Process water | K46: 0.00124329702 | L46: 9.937239391e-07 | M46: 3.240220127e-06 | N46: 6.619566186e-05 | O46: 0.02114778737 | Q46: 0 | R46: 0 | S46: 0 | T46: 0 | U46: 0 | V46: 0 | W46: 0 | X46: 0 | Y46: 0 | Z46: 0 | AA46: 0 | AB46: 0 | AC46: 0 | AD46: 0 | AE46: 0 | AF46: 0 | AG46: =New_tech!D70 -> 0
J47: Electricity | K47: 0.1158895676 | L47: 3.066915776e-05 | M47: 0.0003273105588 | N47: 0.006433454657 | O47: 2.212066412 | Q47: 0 | R47: 1188702.926 | S47: 6939389.26 | T47: 0 | U47: 747224.496 | V47: 184966.92 | W47: 0 | X47: 1083.9 | Y47: 115632 | Z47: 36 | AA47: 0 | AB47: 0 | AC47: 0 | AD47: 329.6341791 | AE47: 0 | AF47: 0 | AG47: =New_tech!D71 -> 5256000
J48: PV electricity | K48: 0.01342076207 | L48: 4.265384963e-06 | M48: 5.337437393e-05 | N48: 0.009726442454 | O48: =VLOOKUP($J48,$C$3:$H$21,6,FALSE) -> 0.1882082195 | Q48: 0 | R48: 0 | S48: 0 | T48: 0 | U48: 0 | V48: 0 | W48: 0 | X48: 0 | Y48: 0 | Z48: 0 | AA48: 0 | AB48: 0 | AC48: 0 | AD48: 0 | AE48: 0 | AF48: 0 | AG48: =New_tech!D72 -> 0
J49: Heat | K49: 0.07847229819 | L49: 7.882077607e-06 | M49: 4.457260603e-05 | N49: 0.004663226589 | O49: 1.449764569 | Q49: 0 | R49: 0 | S49: 0 | T49: 0 | U49: 0 | V49: 0 | W49: 0 | X49: 0 | Y49: 0 | Z49: 0 | AA49: 0 | AB49: 0 | AC49: 0 | AD49: 0 | AE49: 0 | AF49: 0 | AG49: =New_tech!D73 -> 0
J50: Steel components | K50: 6.140662804 | L50: 0.006896879659 | M50: 0.04142901941 | N50: 93.96062731 | O50: 76.80068674 | Q50: 0 | R50: 20937.54833 | S50: 19137.11048 | T50: 0 | U50: 4132.973082 | V50: 42546 | W50: 0 | X50: 0 | Y50: 0.104 | Z50: 44.624 | AA50: 25.226 | AB50: 25.226 | AC50: 25.226 | AD50: 27.84 | AE50: 0 | AF50: 0 | AG50: =New_tech!D74 -> 10
I51: Reference flow
I52: 440000000 | J52: Conventional wastewater treatment plant, flow rate: 30,137 m3/day | K52: =SUMPRODUCT(K$32:K$49,$Q$32:$Q$49) -> 0 | L52: =SUMPRODUCT(L$32:L$49,$Q$32:$Q$49) -> 0 | M52: =SUMPRODUCT(M$32:M$49,$Q$32:$Q$49) -> 0 | N52: =SUMPRODUCT(N$32:N$49,$Q$32:$Q$49) -> 0 | O52: =SUMPRODUCT(O$32:O$49,$Q$32:$Q$49) -> 0
I53: 4380000 | J53: High-rate algae pond with pretreatment and settler, flow rate: 300 m3/day | K53: =SUMPRODUCT(K$32:K$50,$R$32:$R$50) -> 481815.9469 | L53: =SUMPRODUCT(L$32:L$50,$R$32:$R$50) -> 419.896686 | M53: =SUMPRODUCT(M$32:M$50,$R$32:$R$50) -> 2334.40272 | N53: =SUMPRODUCT(N$32:N$50,$R$32:$R$50) -> 2115147.716 | O53: =SUMPRODUCT(O$32:O$50,$R$32:$R$50) -> 7341426.846
I54: 4380000 | J54: Sequencing batch reactor with sludge settler, flow rate: 300 m3/day | K54: =SUMPRODUCT(K$32:K$50,$S$32:$S$50) -> 1204529.33 | L54: =SUMPRODUCT(L$32:L$50,$S$32:$S$50) -> 720.0959743 | M54: =SUMPRODUCT(M$32:M$50,$S$32:$S$50) -> 5059.970695 | N54: =SUMPRODUCT(N$32:N$50,$S$32:$S$50) -> 2022281.031 | O54: =SUMPRODUCT(O$32:O$50,$S$32:$S$50) -> 20945562.05
I55: 6570000 | J55: Biogas production: 900 Nm3/day | K55: =SUMPRODUCT(K$32:K$50,$T$32:$T$50) -> 0 | L55: =SUMPRODUCT(L$32:L$50,$T$32:$T$50) -> 0 | M55: =SUMPRODUCT(M$32:M$50,$T$32:$T$50) -> 0 | N55: =SUMPRODUCT(N$32:N$50,$T$32:$T$50) -> 0 | O55: =SUMPRODUCT(O$32:O$50,$T$32:$T$50) -> 0
I56: 280390.08 | J56: Algae-based biogas upgrade with HRAP, flow rate: 0.05 m3/day | K56: =SUMPRODUCT(K$32:K$50,$U$32:$U$50) -> 195313.139 | L56: =SUMPRODUCT(L$32:L$50,$U$32:$U$50) -> 1569.273964 | M56: =SUMPRODUCT(M$32:M$50,$U$32:$U$50) -> 2444.279144 | N56: =SUMPRODUCT(N$32:N$50,$U$32:$U$50) -> 1908352.417 | O56: =SUMPRODUCT(O$32:O$50,$U$32:$U$50) -> 3127103.958
I57: 3248500 | J57: Pressure swing adsorption: 26,920.7 m3/day | K57: =SUMPRODUCT(K$32:K$50,$V$32:$V$50) -> 366783.5514 | L57: =SUMPRODUCT(L$32:L$50,$V$32:$V$50) -> 326.5928021 | M57: =SUMPRODUCT(M$32:M$50,$V$32:$V$50) -> 2142.198765 | N57: =SUMPRODUCT(N$32:N$50,$V$32:$V$50) -> 4138857.237 | O57: =SUMPRODUCT(O$32:O$50,$V$32:$V$50) -> 4787329.869
I58: 64000000 | J58: Raw sewage sludge incineration | K58: =SUMPRODUCT(K$32:K$50,$W$32:$W$50) -> 0 | L58: =SUMPRODUCT(L$32:L$50,$W$32:$W$50) -> 0 | M58: =SUMPRODUCT(M$32:M$50,$W$32:$W$50) -> 0 | N58: =SUMPRODUCT(N$32:N$50,$W$32:$W$50) -> 0 | O58: =SUMPRODUCT(O$32:O$50,$W$32:$W$50) -> 0
I59: 5950 | J59: Evaporative system for digestate and sludge, flow rate: 0.427 m3/day | K59: =SUMPRODUCT(K$32:K$50,$X$32:$X$50) -> 37425.44696 | L59: =SUMPRODUCT(L$32:L$50,$X$32:$X$50) -> 966.7588594 | M59: =SUMPRODUCT(M$32:M$50,$X$32:$X$50) -> 1253.381162 | N59: =SUMPRODUCT(N$32:N$50,$X$32:$X$50) -> 961053.9171 | O59: =SUMPRODUCT(O$32:O$50,$X$32:$X$50) -> 573054.8999
I60: 58400 | J60: Willow zero-discharge system for wastewater, flow rate: 4 m3/day | K60: =SUMPRODUCT(K$32:K$50,$Y$32:$Y$50) -> 200559.3531 | L60: =SUMPRODUCT(L$32:L$50,$Y$32:$Y$50) -> 4783.139566 | M60: =SUMPRODUCT(M$32:M$50,$Y$32:$Y$50) -> 6245.329025 | N60: =SUMPRODUCT(N$32:N$50,$Y$32:$Y$50) -> 4750317.571 | O60: =SUMPRODUCT(O$32:O$50,$Y$32:$Y$50) -> 3149997.428
I61: 328.5 | J61: Sludge Treatment Wetland, flow rate: 0.0225 m3/day | K61: =SUMPRODUCT(K$32:K$50,$Z$32:$Z$50) -> 11390.76158 | L61: =SUMPRODUCT(L$32:L$50,$Z$32:$Z$50) -> 289.2235586 | M61: =SUMPRODUCT(M$32:M$50,$Z$32:$Z$50) -> 376.5060093 | N61: =SUMPRODUCT(N$32:N$50,$Z$32:$Z$50) -> 291417.5405 | O61: =SUMPRODUCT(O$32:O$50,$Z$32:$Z$50) -> 171673.8249
I62: 58400 | J62: Planted filter for outlet water from a HRAP with Phragmites australis, flow rate: 4 m3/day | K62: =SUMPRODUCT(K$32:K$50,$AA$32:$AA$50) -> 7275.173274 | L62: =SUMPRODUCT(L$32:L$50,$AA$32:$AA$50) -> 168.5705718 | M62: =SUMPRODUCT(M$32:M$50,$AA$32:$AA$50) -> 221.4033528 | N62: =SUMPRODUCT(N$32:N$50,$AA$32:$AA$50) -> 170315.1759 | O62: =SUMPRODUCT(O$32:O$50,$AA$32:$AA$50) -> 114827.1659
I63: 58400 | J63: Planted filter for outlet water from a HRAP with Arundo donax, flow rate: 4 m3/day | K63: =SUMPRODUCT(K$32:K$50,$AB$32:$AB$50) -> 7275.173274 | L63: =SUMPRODUCT(L$32:L$50,$AB$32:$AB$50) -> 168.5705718 | M63: =SUMPRODUCT(M$32:M$50,$AB$32:$AB$50) -> 221.4033528 | N63: =SUMPRODUCT(N$32:N$50,$AB$32:$AB$50) -> 170315.1759 | O63: =SUMPRODUCT(O$32:O$50,$AB$32:$AB$50) -> 114827.1659
I64: 58400 | J64: Planted filter with Phragmites Australis for municipal wastewater, flow rate: 4 m3/day | K64: =SUMPRODUCT(K$32:K$50,$AC$32:$AC$50) -> 7559.330234 | L64: =SUMPRODUCT(L$32:L$50,$AC$32:$AC$50) -> 168.6385013 | M64: =SUMPRODUCT(M$32:M$50,$AC$32:$AC$50) -> 222.0217172 | N64: =SUMPRODUCT(N$32:N$50,$AC$32:$AC$50) -> 170338.8042 | O64: =SUMPRODUCT(O$32:O$50,$AC$32:$AC$50) -> 123663.9452
I65: 116800 | J65: Conventional chlorination, flow rate: 8 m3/day | K65: =SUMPRODUCT(K$32:K$50,$AD$32:$AD$50) -> 330.6590951 | L65: =SUMPRODUCT(L$32:L$50,$AD$32:$AD$50) -> 0.2414259924 | M65: =SUMPRODUCT(M$32:M$50,$AD$32:$AD$50) -> 1.656425218 | N65: =SUMPRODUCT(N$32:N$50,$AD$32:$AD$50) -> 2778.753774 | O65: =SUMPRODUCT(O$32:O$50,$AD$32:$AD$50) -> 4243.862955
I66: 10000000 | J66: A. niger-based citric acid production | K66: =SUMPRODUCT(K$32:K$50,$AE$32:$AE$50) -> 0 | L66: =SUMPRODUCT(L$32:L$50,$AE$32:$AE$50) -> 0 | M66: =SUMPRODUCT(M$32:M$50,$AE$32:$AE$50) -> 0 | N66: =SUMPRODUCT(N$32:N$50,$AE$32:$AE$50) -> 0 | O66: =SUMPRODUCT(O$32:O$50,$AE$32:$AE$50) -> 0
I67: 116800 | J67: Solar anodic oxidation: 8 m3/day | K67: =SUMPRODUCT(K$32:K$50,$AF$32:$AF$50) -> 713.286775 | L67: =SUMPRODUCT(L$32:L$50,$AF$32:$AF$50) -> 0.3079410998 | M67: =SUMPRODUCT(M$32:M$50,$AF$32:$AF$50) -> 3.034107444 | N67: =SUMPRODUCT(N$32:N$50,$AF$32:$AF$50) -> 1174.926488 | O67: =SUMPRODUCT(O$32:O$50,$AF$32:$AF$50) -> 13376.46456
J68: =New_tech!B51 -> New technology | K68: =SUMPRODUCT(K$32:K$50,$AG$32:$AG$50) -> 4810675.781 | L68: =SUMPRODUCT(L$32:L$50,$AG$32:$AG$50) -> 12940.51673 | M68: =SUMPRODUCT(M$32:M$50,$AG$32:$AG$50) -> 26087.51268 | N68: =SUMPRODUCT(N$32:N$50,$AG$32:$AG$50) -> 1969053.704 | O68: =SUMPRODUCT(O$32:O$50,$AG$32:$AG$50) -> 113468420.3
J71: Conventional wastewater treatment plant, flow rate: 30,137 m3/day | K71: =K52/$I52 -> 0 | L71: =L52/$I52 -> 0 | M71: 0 | N71: 0 | O71: 0
J72: High-rate algae pond with pretreatment and settler, flow rate: 300 m3/day | K72: 0.1100036408 | L72: 9.586682329e-05 | M72: 0.0005329686576 | N72: 0.4829104373 | O72: 1.676124851
J73: Sequencing batch reactor with sludge settler, flow rate: 300 m3/day | K73: 0.2750066963 | L73: =L54/$I54 -> 0.0001644054736 | M73: 0.001155244451 | N73: 0.4617079979 | O73: 4.782091793
J74: Biogas production: 900 Nm3/day | K74: 0 | L74: 0 | M74: 0 | N74: 0 | O74: 0
J75: Algae-based biogas upgrade with HRAP, flow rate: 0.05 m3/day | K75: 0.6965764944 | L75: 0.005596752794 | M75: 0.008717423756 | N75: 6.80606253 | O75: 11.15269113
J76: Pressure swing adsorption: 26,920.7 m3/day | K76: 0.112908589 | L76: 0.0001005364944 | M76: 0.0006594424395 | N76: 1.274082572 | O76: 1.473704747
J77: Raw sewage sludge incineration | K77: 0 | L77: 0 | M77: 0 | N77: 0 | O77: 0
J78: Evaporative system for digestate and sludge, flow rate: 0.427 m3/day | K78: 6.289991085 | L78: 0.1624804806 | M78: 0.2106522961 | N78: 161.5216667 | O78: 96.31174788
J79: Willow zero-discharge system for wastewater, flow rate: 4 m3/day | K79: 3.434235499 | L79: 0.08190307476 | M79: 0.1069405655 | N79: 81.34105429 | O79: 53.93831212
J80: Sludge Treatment Wetland, flow rate: 0.0225 m3/day | K80: 34.67507329 | L80: 0.8804370124 | M80: 1.146137015 | N80: 887.1158006 | O80: 522.5991624
J81: Planted filter for outlet water from a HRAP with Phragmites australis, flow rate: 4 m3/day | K81: 0.1245748848 | L81: 0.002886482395 | M81: 0.003791153302 | N81: 2.916355752 | O81: 1.966218594
J82: Planted filter for outlet water from a HRAP with Arundo donax, flow rate: 4 m3/day | K82: 0.1245748848 | L82: 0.002886482395 | M82: 0.003791153302 | N82: 2.916355752 | O82: 1.966218594
J83: Planted filter with Phragmites Australis for municipal wastewater, flow rate: 4 m3/day | K83: 0.1294405862 | L83: 0.00288764557 | M83: 0.003801741734 | N83: 2.916760346 | O83: 2.117533309
J84: Conventional chlorination, flow rate: 8 m3/day | K84: 0.002830985403 | L84: 2.06700336e-06 | M84: 1.418172276e-05 | N84: 0.02379070012 | O84: 0.03633444311
J85: A. niger-based citric acid production | K85: 0 | L85: 0 | M85: 0 | N85: 0 | O85: 0
J86: Solar anodic oxidation: 8 m3/day | K86: 0.00610690732 | L86: 2.636482019e-06 | M86: 2.597694729e-05 | N86: 0.01005930212 | O86: 0.1145245253

Sheet LCA_variables
B1: kg CO2 eq. | C1: kg Phosphate eq. | D1: kg SO2 eq. | E1: kg DCB eq. | F1: MJ
A2: Biogas | B2: 0.2730035947 | C2: 0.001797452801 | D2: 0.002529044185 | E2: -0.009640276529 | F2: 2.267830886
A3: CA | B3: 27.17231906 | C3: 0.05039725944 | D3: 0.2061582116 | E3: 16.59861173 | F3: 326.8544686
A4: Concrete | B4: 0.09082229196 | C4: 2.754389775e-05 | D4: 0.0001719163126 | E4: 0.02613512523 | F4: 0.5052763119
A5: Electricity | B5: 0.1158895676 | C5: 3.066915776e-05 | D5: 0.0003273105588 | E5: 0.006433454657 | F5: 2.212066412
A6: GFR_pipe | B6: 1.502704012 | C6: 0.0003542049441 | D6: 0.003239822565 | E6: 0.09705529229 | F6: 36.31436402
A7: GFR_plastic | B7: 9.053458282 | C7: 0.008925628948 | D7: 0.03651061543 | E7: 1.093706762 | F7: 143.6019341
A8: HDPE_pipe | B8: 2.020678544 | C8: 0.0004891316015 | D8: 0.00438936632 | E8: 0.1692628478 | F8: 82.91844316
A9: Lime | B9: 0.02490965437 | C9: 1.056329992e-05 | D9: 4.791885397e-05 | E9: 0.001446657012 | F9: 0.3730142913
A10: PAM | B10: 2.87713356 | C10: 0.008752718016 | D10: 0.01668714907 | E10: 1.323716187 | F10: 69.74347299
A11: PEP | B11: 3.664238761 | C11: 0.005664836364 | D11: 0.01397862548 | E11: 1.389237393 | F11: 88.96581049
A12: PP_film | B12: 3.241640363 | C12: 0.001180427549 | D12: 0.01592281678 | E12: 0.02739530345 | F12: 97.70913536
A13: Steam | B13: 0.07847229819 | C13: 7.882077607e-06 | D13: 4.457260603e-05 | E13: 0.004663226589 | F13: 1.449764569
A14: P_water | B14: 0.00124329702 | C14: 9.937239391e-07 | D14: 3.240220127e-06 | E14: 6.619566186e-05 | F14: 0.02114778737
A15: Pump | B15: 3.830555168 | C15: 0.001267973442 | D15: 0.01631024089 | E15: 8.317209168 | F15: 54.45963463
A16: PV_electricity | B16: 0.01342076207 | C16: 4.265384963e-06 | D16: 5.337437393e-05 | E16: 0.009726442454 | F16: 0.1882082195
A17: PV_install | B17: 151.7532075 | C17: 4.022843574 | D17: 5.204603224 | E17: 3996.614185 | F17: 2273.910467
A18: PVC_film | B18: 3.26159702 | C18: 0.001191911377 | D18: 0.01456402829 | E18: 6.475107651 | F18: 68.10067328
A19: PVC_pipe | B19: 3.32032499 | C19: 0.001194547126 | D19: 0.01480135109 | E19: 6.269909423 | F19: 65.85911877
A20: Sludge | B20: 0.08028382459 | C20: 0.001032201029 | D20: 0.0004766308324 | E20: 0.02810362287 | F20: 0.4763244199
A21: Sodium_silicate | B21: 0.7901282796 | C21: 0.0010945877 | D21: 0.004355470378 | E21: 0.6314565792 | F21: 7.930235014
A22: WW | B22: 0.5380404481 | C22: 0.01476406699 | D22: 0.004730964352 | E22: 0.7531376444 | F22: 5.934873072
A23: PAC18 | B23: =B59/1000 -> 0.8654108867 | C23: =B63/1000 -> 0.001112119804 | D23: =B67/1000 -> 0.006909723433 | E23: =B71/1000 -> 0.5789173144 | F23: =B75/1000 -> 12.68632203
A24: Steel | B24: 6.140662804 | C24: 0.006896879659 | D24: 0.04142901941 | E24: 93.96062731 | F24: 76.80068674
A31: CML2001 - Jan. 2016, Global Warming Potential (GWP 100 years), excl biogenic carbon | B31: kg CO2 eq.
B33: Biogas | C33: CA | D33: Concrete | E33: Electricity | F33: GFR_pipe | G33: GFR_plastic | H33: HDPE_pipe | I33: Lime | J33: PAM | K33: PEP | L33: PP_film | M33: Steam | N33: P_water | O33: Pump | P33: PV_electricity | Q33: PV_install | R33: PVC_film | S33: PVC_pipe | T33: Sludge | U33: Sodium_silicate | V33: WW | W33: Steel_components
A34: Flows | B34: 0.2730035947 | C34: 27.17231906 | D34: 0.09082229196 | E34: 0.1158895676 | F34: 1.502704012 | G34: 9.053458282 | H34: 2.020678544 | I34: 0.02490965437 | J34: 2.87713356 | K34: 3.664238761 | L34: 3.241640363 | M34: 0.07847229819 | N34: 0.00124329702 | O34: 3.830555168 | P34: 0.01342076207 | Q34: 151.7532075 | R34: 3.26159702 | S34: 3.32032499 | T34: 0.00138596798 | U34: 0.7901282796 | V34: 0.5380404481 | W34: 6.140662804
A36: CML2001 - Jan. 2016, Eutrophication Potential (EP) | B36: kg Phosphate eq.
B38: Biogas | C38: CA | D38: Concrete | E38: Electricity | F38: GFR_pipe | G38: GFR_plastic | H38: HDPE_pipe | I38: Lime | J38: PAM | K38: PEP | L38: PP_film | M38: Steam | N38: P_water | O38: Pump | P38: PV_electricity | Q38: PV_install | R38: PVC_film | S38: PVC_pipe | T38: Sludge | U38: Sodium_silicate | V38: WW | W38: Steel_components
A39: Flows | B39: 0.001797452801 | C39: 0.05039725944 | D39: 2.754389775e-05 | E39: 3.066915776e-05 | F39: 0.0003542049441 | G39: 0.008925628948 | H39: 0.0004891316015 | I39: 1.056329992e-05 | J39: 0.008752718016 | K39: 0.005664836364 | L39: 0.001180427549 | M39: 7.882077607e-06 | N39: 9.937239391e-07 | O39: 0.001267973442 | P39: 4.265384963e-06 | Q39: 4.022843574 | R39: 0.001191911377 | S39: 0.001194547126 | T39: 8.825086518e-06 | U39: 0.0010945877 | V39: 0.01476406699 | W39: 0.006896879659
A41: CML2001 - Jan. 2016, Acidification Potential (AP) | B41: kg SO2 eq.
B43: Biogas | C43: CA | D43: Concrete | E43: Electricity | F43: GFR_pipe | G43: GFR_plastic | H43: HDPE_pipe | I43: Lime | J43: PAM | K43: PEP | L43: PP_film | M43: Steam | N43: P_water | O43: Pump | P43: PV_electricity | Q43: PV_install | R43: PVC_film | S43: PVC_pipe | T43: Sludge | U43: Sodium_silicate | V43: WW | W43: Steel_components
A44: Flows | B44: 0.002529044185 | C44: 0.2061582116 | D44: 0.0001719163126 | E44: 0.0003273105588 | F44: 0.003239822565 | G44: 0.03651061543 | H44: 0.00438936632 | I44: 4.791885397e-05 | J44: 0.01668714907 | K44: 0.01397862548 | L44: 0.01592281678 | M44: 4.457260603e-05 | N44: 3.240220127e-06 | O44: 0.01631024089 | P44: 5.337437393e-05 | Q44: 5.204603224 | R44: 0.01456402829 | S44: 0.01480135109 | T44: 1.207782801e-05 | U44: 0.004355470378 | V44: 0.004730964352 | W44: 0.04142901941
A46: CML2001 - Jan. 2016, Human Toxicity Potential (HTP inf.) | B46: kg DCB eq.
B48: Biogas | C48: CA | D48: Concrete | E48: Electricity | F48: GFR_pipe | G48: GFR_plastic | H48: HDPE_pipe | I48: Lime | J48: PAM | K48: PEP | L48: PP_film | M48: Steam | N48: P_water | O48: Pump | P48: PV_electricity | Q48: PV_install | R48: PVC_film | S48: PVC_pipe | T48: Sludge | U48: Sodium_silicate | V48: WW | W48: Steel_components
A49: Flows | B49: -0.009640276529 | C49: 16.59861173 | D49: 0.02613512523 | E49: 0.006433454657 | F49: 0.09705529229 | G49: 1.093706762 | H49: 0.1692628478 | I49: 0.001446657012 | J49: 1.323716187 | K49: 1.389237393 | L49: 0.02739530345 | M49: 0.004663226589 | N49: 6.619566186e-05 | O49: 8.317209168 | P49: 0.009726442454 | Q49: 3996.614185 | R49: 6.475107651 | S49: 6.269909423 | T49: 0.0002281672337 | U49: 0.6314565792 | V49: 0.7531376444 | W49: 93.96062731
A51: Primary energy from non renewable resources (gross cal. value) | B51: MJ
B53: Biogas | C53: CA | D53: Concrete | E53: Electricity | F53: GFR_pipe | G53: GFR_plastic | H53: HDPE_pipe | I53: Lime | J53: PAM | K53: PEP | L53: PP_film | M53: Steam | N53: P_water | O53: Pump | P53: PV_electricity | Q53: PV_install | R53: PVC_film | S53: PVC_pipe | T53: Sludge | U53: Sodium_silicate | V53: WW | W53: Steel_components
A54: Flows | B54: 2.267830886 | C54: 326.8544686 | D54: 0.5052763119 | E54: 2.212066412 | F54: 36.31436402 | G54: 143.6019341 | H54: 82.91844316 | I54: 0.3730142913 | J54: 69.74347299 | K54: 88.96581049 | L54: 97.70913536 | M54: 1.449764569 | N54: 0.02114778737 | O54: 54.45963463 | P54: 0.1882082195 | Q54: 2273.910467 | R54: 68.10067328 | S54: 65.85911877 | T54: 0.0142744828 | U54: 7.930235014 | V54: 5.934873072 | W54: 76.80068674
A57: CML2001 - Jan. 2016, Global Warming Potential (GWP 100 years), excl biogenic carbon | B57: kg CO2 eq.
B58: EU-28: Water treatment UFZ <LC>
A59: Flows | B59: 865.4108867
A61: CML2001 - Jan. 2016, Eutrophication Potential (EP) | B61: kg Phosphate eq.
B62: EU-28: Water treatment UFZ <LC>
A63: Flows | B63: 1.112119804
A65: CML2001 - Jan. 2016, Acidification Potential (AP) | B65: kg SO2 eq.
B66: EU-28: Water treatment UFZ <LC>
A67: Flows | B67: 6.909723433
A69: CML2001 - Jan. 2016, Human Toxicity Potential (HTP inf.) | B69: kg DCB eq.
B70: EU-28: Water treatment UFZ <LC>
A71: Flows | B71: 578.9173144
A73: Primary energy from non renewable resources (gross cal. value) | B73: MJ
B74: EU-28: Water treatment UFZ <LC>
A75: Flows | B75: 12686.32203
A78: CML2001 - Jan. 2016, Global Warming Potential (GWP 100 years), excl biogenic carbon | B78: kg CO2 eq.

Sheet Pictures
A1: https://www.youtube.com/watch?v=rTyZmSHDLBA | D1: =Ref_sys!B5 -> Sequencing batch reactor with sludge settler, flow rate: 300 m3/day
A2: Conventional wastewater treatment plant, flow rate: 30,137 m3/day | B2: no picture available
A3: High-rate algae pond with pretreatment and settler, flow rate: 300 m3/day
A4: Sequencing batch reactor with sludge settler, flow rate: 300 m3/day
A5: Biogas production: 900 Nm3/day
A6: Algae-based biogas upgrade with HRAP, flow rate: 0.05 m3/dy
A7: Pressure swing adsorption: 26,920.7 m3/day
A8: Raw sewage sludge incineration
A9: Evaporative system for digestate and sludge, flow rate: 0.427 m3/day
A10: Willow zero-discharge system for wastewater, flow rate: 4 m3/day
A11: Sludge Treatment Wetland, flow rate: 0.0225 m3/day
A12: Planted filter for outlet water from a HRAP with Phragmites australis, flow rate: 4 m3/day
A13: Planted filter for outlet water from a HRAP with Arundo donax, flow rate: 4 m3/day
A14: Planted filter with Phragmites Australis for municipal wastewater, flow rate: 4 m3/day
A15: Conventional chlorination, flow rate: 8 m3/day
A16: A. niger-based citric acid production
A17: 0
A18: 0
A19: 0
A20: 0
A21: 0
A22: 0
A23: 0
A24: 0
A25: Solar anodic oxidation: 8 m3/day
A26: no information

Sheet My_techn
A1: =New_tech!B51 -> New technology | C1: =New_tech!$B$9 -> 4380000 | D1: =New_tech!B8 -> 300 | E1: =New_tech!B7 -> 40 | F1: =New_tech!D56 -> 50 | G1: =New_tech!$D57 -> 0 | H1: =New_tech!$D58 -> 56 | I1: =New_tech!$D59 -> 0 | J1: =New_tech!$D60 -> 0 | K1: =New_tech!$D61 -> 0 | L1: =New_tech!$D62 -> 0 | M1: =New_tech!$D63 -> 0 | N1: =New_tech!$D64 -> 200 | O1: =New_tech!$D65 -> 0 | P1: =New_tech!$D66 -> 1460000 | Q1: =New_tech!$D67 -> 0 | R1: =New_tech!$D68 -> 0 | S1: =New_tech!$D69 -> 0 | T1: =New_tech!$D70 -> 0 | U1: =New_tech!$D71 -> 5256000 | V1: =New_tech!$D72 -> 0 | W1: =New_tech!$D73 -> 0 | X1: =New_tech!D74 -> 10
B2: GWP | C2: EP | D2: AC | E2: HTP | F2: PED | G2: System description | H2: INPUT | M2: OUTPUT
A3: =New_tech!B51 -> New technology | B3: =Parameter_tables!K68/$C$1 -> 1.098327804 | C3: =Parameter_tables!L68/$C$1 -> 0.002954455874 | D3: =Parameter_tables!M68/$C$1 -> 0.005956053124 | E3: =Parameter_tables!N68/$C$1 -> 0.4495556402 | F3: =Parameter_tables!O68/$C$1 -> 25.90603202 | G3: =New_tech!F82 -> 0 | H3: =New_tech!G82 -> 0 | I3: =New_tech!H82 -> 0 | J3: =New_tech!I82 -> 0 | K3: =New_tech!J82 -> 0 | L3: =New_tech!K82 -> 0 | M3: =New_tech!L82 -> 0 | N3: =New_tech!M82 -> 0 | O3: =New_tech!N82 -> 0 | P3: =New_tech!O82 -> 0 | Q3: =New_tech!P82 -> 0
